Workbook

Sheet Data summary
A1: RUN # 2 | B1: Rate classes | C1: Weather station used for normalization | H1: Test Year
A2: 1 | B2: Residential class | C2: Toronto Pearson | H2: 2004
A3: 2 | B3: Streetlights
A4: 3 | B4: Sentinellights
A5: 4 | B5: General service <50kW
A6: 5 | B6: General service >50kW
A7: 6 | B7: USL
A10: Monthly kWh by class (with actual weather) | C10: Jan | D10: Feb | E10: Mar | F10: Apr | G10: May | H10: Jun | I10: Jul | J10: Aug | K10: Sep | L10: Oct | M10: Nov | N10: Dec | O10: TOTAL
A11: 1 | B11: Residential class | C11: 21251120.86 | D11: 16857795.44 | E11: 15546767.98 | F11: 12671024.08 | G11: 11018103.22 | H11: 10386892.3 | I11: 11983593.41 | J11: 11617145.55 | K11: 10659766.16 | L11: 11504510.31 | M11: 13431840.75 | N11: 18867670.85 | O11: =SUM(C11:N11) -> 165796230.9
A12: 2 | B12: Streetlights | C12: 141715.96 | D12: 132700.708 | E12: 141853.1908 | F12: 102957.9611 | G12: 106894.2163 | H12: 103446.0157 | I12: 76353.01162 | J12: 76353.01162 | K12: 74664.306 | L12: 118301.4448 | M12: 114485.2692 | N12: 118301.4448 | O12: 1308026.54
A13: 3 | B13: Sentinellights | C13: 14180.516 | D13: 13265.644 | E13: 14180.516 | F13: 10292.31 | G13: 10635.387 | H13: 10292.31 | I13: 7596.705 | J13: 7596.705 | K13: 7351.65 | L13: 11648.281 | M13: 11272.53 | N13: 11648.281 | O13: 129960.835
A14: 4 | B14: General service <50kW | C14: 2509740.48 | D14: 2306020.3 | E14: 2209198.05 | F14: 1964935.5 | G14: 1997330.03 | H14: 2023516.51 | I14: 2168451.76 | J14: 2177971.62 | K14: 2042857.13 | L14: 2135678.59 | M14: 2191752.59 | N14: 2515230.7 | O14: 26242683.26
A15: 5 | B15: General service >50kW | C15: 3663419.659 | D15: 3468762.43 | E15: 3495303.579 | F15: 3098622.545 | G15: 3259146.555 | H15: 3178433.263 | I15: 3208644.514 | J15: 3213528.511 | K15: 3269196.151 | L15: 3345024.767 | M15: 3451520.697 | N15: 3508050.557 | O15: 40159653.23
A16: 6 | B16: USL | C16: 65512.52 | D16: 63599.48 | E16: 68248.68 | F16: 64382.6 | G16: 64382.6 | H16: 64382.6 | I16: 64382.6 | J16: 64382.6 | K16: 64382.6 | L16: 64382.6 | M16: 64003.16 | N16: 64003.16 | O16: 776045.2
A19: Monthly kWh by class (with normalized weather) | C19: Jan | D19: Feb | E19: Mar | F19: Apr | G19: May | H19: Jun | I19: Jul | J19: Aug | K19: Sep | L19: Oct | M19: Nov | N19: Dec | O19: TOTAL
A20: 1 | B20: Residential class | C20: 19800921.82 | D20: 17325473.7 | E20: 16443463.33 | F20: 12743767.42 | G20: 11182681.86 | H20: 10864629.47 | I20: 12430005.77 | J20: 11988803.64 | K20: 10537995.81 | L20: 12099413.06 | M20: 14241430.02 | N20: 18625139.01 | O20: =SUM(C20:N20) -> 168283724.9
A21: 2 | B21: Streetlights | C21: 141715.96 | D21: 132700.708 | E21: 141853.1908 | F21: 102957.9611 | G21: 106894.2163 | H21: 103446.0157 | I21: 76353.01162 | J21: 76353.01162 | K21: 74664.306 | L21: 118301.4448 | M21: 114485.2692 | N21: 118301.4448 | O21: 1308026.54
A22: 3 | B22: Sentinellights | C22: 14180.516 | D22: 13265.644 | E22: 14180.516 | F22: 10292.31 | G22: 10635.387 | H22: 10292.31 | I22: 7596.705 | J22: 7596.705 | K22: 7351.65 | L22: 11648.281 | M22: 11272.53 | N22: 11648.281 | O22: 129960.835
A23: 4 | B23: General service <50kW | C23: 2428564.742 | D23: 2332198.864 | E23: 2259391.097 | F23: 1969007.356 | G23: 2011379.796 | H23: 2103860.592 | I23: 2243527.75 | J23: 2240475.714 | K23: 2027037.322 | L23: 2168978.621 | M23: 2237069.825 | N23: 2501654.841 | O23: 26523146.52
A24: 5 | B24: General service >50kW | C24: 3583293.417 | D24: 3494602.539 | E24: 3544847.694 | F24: 3102641.753 | G24: 3273339.88 | H24: 3261342.092 | I24: 3286117.082 | J24: 3278027.861 | K24: 3252975.594 | L24: 3377894.27 | M24: 3496252.036 | N24: 3494650.214 | O24: 40445984.43
A25: 6 | B25: USL | C25: 65512.52 | D25: 63599.48 | E25: 68248.68 | F25: 64382.6 | G25: 64382.6 | H25: 64382.6 | I25: 64382.6 | J25: 64382.6 | K25: 64382.6 | L25: 64382.6 | M25: 64003.16 | N25: 64003.16 | O25: 776045.2
A28: Residential class information | C28: Equipment saturation
B29: Electric space heating | C29: 0.2449534161
B30: Electric water heating | C30: 0.4496221662
B31: Air conditioning | C31: 0.3218597821
B32: Baseload | C32: 1
A35: General service >50kW | C35: 2004 kWh (Actual) | D35: 2004 kWh (Weather Corrected)
B36: Weather sensitive load | C36: 27275911.55 | D36: 27562242.75
B37: Non-weather sensitive load | C37: 12883741.68 | D37: 12883741.68
B38: TOTAL | C38: =SUM(C36:C37) -> 40159653.23 | D38: =SUM(D36:D37) -> 40445984.43

Sheet Hourly load shapes by class
A1: ALL UNITS IN GWh | E1: 2004 Load Shape | M1: 2021 Load Shape
A2: Year | B2: Month | C2: Day | D2: Hour (EST) | E2: Residential | F2: GS>50kW | G2: Street Lighting | H2: Sentinel Lighting | I2: GS<50kW | J2: USL | K2: TOTAL LDC sales | M2: =E2 -> Residential | N2: GS>50kW | O2: Street Lighting | P2: Sentinel Lighting | Q2: GS<50kW | R2: USL | S2: ED | T2: =K2 -> TOTAL LDC sales | W2: =E2 -> Residential | X2: GS>50kW | Y2: Street Lighting | Z2: Sentinel Lighting | AA2: GS<50kW | AB2: USL | AC2: ED 2010
A3: 2004 | B3: 1 | C3: 1 | D3: 1 | E3: 0.0197436758 | F3: 0.003493005179 | G3: 0.00032653447 | H3: 3.2674e-05 | I3: 0.00301212106 | J3: 8.805446237e-05 | K3: =SUM(E3:J3) -> 0.02669606497 | M3: =E3*W$5 -> 0.02340187853 | N3: =(F3*X$5)-S3 -> 0.005141182821 | O3: =G3*Y$5 -> 0.0002235108278 | P3: =H3*Z$5 -> 2.428443252e-05 | Q3: =I3*AA$5 -> 0.00498965984 | R3: =J3*AB$5 -> 5.294412599e-05 | S3: =(F3*$AC$7)*$AC$5 -> 5.043377718e-05 | T3: =SUM(M3:R3) -> 0.03383346057 | V3: 2004 | W3: ='Data summary'!O11 -> 165796230.9 | X3: ='Data summary'!O15 -> 40159653.23 | Y3: ='Data summary'!O12 -> 1308026.54 | Z3: ='Data summary'!O13 -> 129960.835 | AA3: ='Data summary'!O14 -> 26242683.26 | AB3: ='Data summary'!O16 -> 776045.2 | AC3: 1000000 | AD3: =SUM(W3:AB3) -> 234412600
A4: 2004 | B4: 1 | C4: 1 | D4: 2 | E4: 0.01801256486 | F4: 0.003520177536 | G4: 0.00032653447 | H4: 3.2674e-05 | I4: 0.003035385093 | J4: 8.805446237e-05 | K4: 0.02501539042 | M4: 0.02135001907 | N4: =(F4*X$5)-S4 -> 0.005181176479 | O4: 0.0002235108278 | P4: 2.428443252e-05 | Q4: 0.005028197339 | R4: =J4*AB$5 -> 5.294412599e-05 | S4: =(F4*$AC$7)*$AC$5 -> 5.082610543e-05 | T4: 0.03186013228 | V4: 2024 Forecast | W4: 196515750 | X4: 59688867.21 | Y4: 895336.0873 | Z4: 96591.33033 | AA4: 43471713.17 | AB4: 466609.3431 | AC4: 935588.9 | AD4: =SUM(W4:AC4) -> 302070456
A5: 2004 | B5: 1 | C5: 1 | D5: 3 | E5: 0.01706681029 | F5: 0.003455602945 | G5: 0.00032653447 | H5: 3.2674e-05 | I5: 0.002990412113 | J5: 8.805446237e-05 | K5: 0.02396008828 | M5: 0.02022903056 | N5: 0.005086132309 | O5: 0.0002235108278 | P5: 2.428443252e-05 | Q5: 0.004953698383 | R5: 5.294412599e-05 | S5: 4.989374479e-05 | T5: 0.03056960064 | V5: Scaling Factor | W5: =W4/W3 -> 1.185284785 | X5: =X4/X3 -> 1.486289408 | Y5: =Y4/Y3 -> 0.6844938233 | Z5: 0.7432341469 | AA5: 1.656526992 | AB5: 0.6012656777 | AC5: =AC4/AC3 -> 0.9355889
A6: 2004 | B6: 1 | C6: 1 | D6: 4 | E6: 0.01644968618 | F6: 0.003536513876 | G6: 0.00032653447 | H6: 3.2674e-05 | I6: 0.003164333161 | J6: 8.805446237e-05 | K6: 0.02359779615 | M6: 0.01949756275 | N6: 0.005205221136 | O6: 0.0002235108278 | P6: 2.428443252e-05 | Q6: 0.005241803294 | R6: 5.294412599e-05 | S6: 5.106197778e-05 | T6: 0.03024532656
A7: 2004 | B7: 1 | C7: 1 | D7: 5 | E7: 0.01665222118 | F7: 0.003518589724 | G7: 0.00032653447 | H7: 3.2674e-05 | I7: 0.003131555412 | J7: 8.805446237e-05 | K7: 0.02374962925 | M7: 0.01973762441 | N7: 0.005178839457 | O7: 0.0002235108278 | P7: 2.428443252e-05 | Q7: 0.005187506067 | R7: 5.294412599e-05 | S7: 5.08031798e-05 | T7: 0.03040470932 | AC7: =AC4/(X4+AC4) -> 0.01543253268
A8: 2004 | B8: 1 | C8: 1 | D8: 6 | E8: 0.01727655041 | F8: 0.003515296175 | G8: 0.00032653447 | H8: 3.2674e-05 | I8: 0.003140395989 | J8: 8.805446237e-05 | K8: 0.02437950551 | M8: 0.02047763234 | N8: 0.005173991843 | O8: 0.0002235108278 | P8: 2.428443252e-05 | Q8: 0.005202150723 | R8: 5.294412599e-05 | S8: 5.075562587e-05 | T8: 0.0311545143
A9: 2004 | B9: 1 | C9: 1 | D9: 7 | E9: 0.01843238134 | F9: 0.003606443325 | G9: 0.00032653447 | H9: 3.2674e-05 | I9: 0.00316369253 | J9: 8.805446237e-05 | K9: 0.02564978013 | M9: 0.02184762116 | N9: 0.005308146859 | O9: 0.0002235108278 | P9: 2.428443252e-05 | Q9: 0.005240742071 | R9: 5.294412599e-05 | S9: 5.207165457e-05 | T9: 0.03269724947
A10: 2004 | B10: 1 | C10: 1 | D10: 8 | E10: 0.02083494755 | F10: 0.003855792324 | G10: 0 | H10: 0 | I10: 0.003367187687 | J10: 8.805446237e-05 | K10: 0.02814598203 | M10: 0.02469534634 | N10: 0.005675151408 | O10: 0 | P10: 0 | Q10: 0.005577837292 | R10: 5.294412599e-05 | S10: 5.567188166e-05 | T10: 0.03600127916
A11: 2004 | B11: 1 | C11: 1 | D11: 9 | E11: 0.02340722144 | F11: 0.003805853651 | G11: 0 | H11: 0 | I11: 0.003165169125 | J11: 8.805446237e-05 | K11: 0.03046629868 | M11: 0.02774422344 | N11: 0.005601649127 | O11: 0 | P11: 0 | Q11: 0.005243188091 | R11: 5.294412599e-05 | S11: 5.495084182e-05 | T11: 0.03864200478
A12: 2004 | B12: 1 | C12: 1 | D12: 10 | E12: 0.02473401457 | F12: 0.003787747746 | G12: 0 | H12: 0 | I12: 0.002983949597 | J12: 8.805446237e-05 | K12: 0.03159376638 | M12: 0.02931685115 | N12: 0.005574999934 | O12: 0 | P12: 0 | Q12: 0.004942993052 | R12: 5.294412599e-05 | S12: 5.468941958e-05 | T12: 0.03988778826
A13: 2004 | B13: 1 | C13: 1 | D13: 11 | E13: 0.02579465517 | F13: 0.004118148186 | G13: 0 | H13: 0 | I13: 0.003344983523 | J13: 8.805446237e-05 | K13: 0.03334584134 | M13: 0.03057401232 | N13: 0.00606130012 | O13: 0 | P13: 0 | Q13: 0.005541055494 | R13: 5.294412599e-05 | S13: 5.945990842e-05 | T13: 0.04222931206
A14: 2004 | B14: 1 | C14: 1 | D14: 12 | E14: 0.02644275766 | F14: 0.00418312043 | G14: 0 | H14: 0 | I14: 0.003346721827 | J14: 8.805446237e-05 | K14: 0.03406065438 | M14: 0.03134219834 | N14: 0.006156929575 | O14: 0 | P14: 0 | Q14: 0.005543935043 | R14: 5.294412599e-05 | S14: 6.039801056e-05 | T14: 0.04309600708
A15: 2004 | B15: 1 | C15: 1 | D15: 13 | E15: 0.02629430558 | F15: 0.004122925115 | G15: 0 | H15: 0 | I15: 0.003173532782 | J15: 8.805446237e-05 | K15: 0.03367881794 | M15: 0.03116624035 | N15: 0.006068331046 | O15: 0 | P15: 0 | Q15: 0.005257042714 | R15: 5.294412599e-05 | S15: 5.952888013e-05 | T15: 0.04254455823
A16: 2004 | B16: 1 | C16: 1 | D16: 14 | E16: 0.02541293201 | F16: 0.004061373168 | G16: 0 | H16: 0 | I16: 0.003094221864 | J16: 8.805446237e-05 | K16: 0.03265658151 | M16: 0.03012156166 | N16: 0.005977735759 | O16: 0 | P16: 0 | Q16: 0.005125662038 | R16: 5.294412599e-05 | S16: 5.864016197e-05 | T16: 0.04127790359
A17: 2004 | B17: 1 | C17: 1 | D17: 15 | E17: 0.02467498844 | F17: 0.004108739206 | G17: 0 | H17: 0 | I17: 0.003290224082 | J17: 8.805446237e-05 | K17: 0.03216200619 | M17: 0.02924688838 | N17: 0.006047451504 | O17: 0 | P17: 0 | Q17: 0.005450345003 | R17: 5.294412599e-05 | S17: 5.93240568e-05 | T17: 0.04079762901
A18: 2004 | B18: 1 | C18: 1 | D18: 16 | E18: 0.02557658144 | F18: 0.004078472108 | G18: 0 | H18: 0 | I18: 0.003302828296 | J18: 8.805446237e-05 | K18: 0.0330459363 | M18: 0.03031553283 | N18: 0.006002902849 | O18: 0 | P18: 0 | Q18: 0.005471224224 | R18: 5.294412599e-05 | S18: 5.888704512e-05 | T18: 0.04184260403
A19: 2004 | B19: 1 | C19: 1 | D19: 17 | E19: 0.02789287272 | F19: 0.004021566976 | G19: 0 | H19: 0 | I19: 0.003032288627 | J19: 8.805446237e-05 | K19: 0.03503478279 | M19: 0.03306099765 | N19: 0.005919146979 | O19: 0 | P19: 0 | Q19: 0.00502306796 | R19: 5.294412599e-05 | S19: 5.806542001e-05 | T19: 0.04405615672
A20: 2004 | B20: 1 | C20: 1 | D20: 18 | E20: 0.03188462242 | F20: 0.004280808317 | G20: 0.00032653447 | H20: 3.2674e-05 | I20: 0.003225829431 | J20: 8.805446237e-05 | K20: 0.0398385231 | M20: 0.03779235784 | N20: 0.00630071158 | O20: 0.0002235108278 | P20: 2.428443252e-05 | Q20: 0.005343673526 | R20: 5.294412599e-05 | S20: 6.180847773e-05 | T20: 0.04973748233
A21: 2004 | B21: 1 | C21: 1 | D21: 19 | E21: 0.03258436906 | F21: 0.004091762381 | G21: 0.00032653447 | H21: 3.2674e-05 | I21: 0.003034576448 | J21: 8.805446237e-05 | K21: 0.04015797082 | M21: 0.03862175688 | N21: 0.006022464149 | O21: 0.0002235108278 | P21: 2.428443252e-05 | Q21: 0.005026857796 | R21: 5.294412599e-05 | S21: 5.90789368e-05 | T21: 0.04997181821
A22: 2004 | B22: 1 | C22: 1 | D22: 20 | E22: 0.03135208417 | F22: 0.003964326505 | G22: 0.00032653447 | H22: 3.2674e-05 | I22: 0.003036831551 | J22: 8.805446237e-05 | K22: 0.03880050516 | M22: 0.03716114835 | N22: 0.005834897539 | O22: 0.0002235108278 | P22: 2.428443252e-05 | Q22: 0.005030593436 | R22: 5.294412599e-05 | S22: 5.723895311e-05 | T22: 0.04832737871
A23: 2004 | B23: 1 | C23: 1 | D23: 21 | E23: 0.03017320134 | F23: 0.003866907653 | G23: 0.00032653447 | H23: 3.2674e-05 | I23: 0.002979723221 | J23: 8.805446237e-05 | K23: 0.03746709514 | M23: 0.03576383647 | N23: 0.005691511515 | O23: 0.0002235108278 | P23: 2.428443252e-05 | Q23: 0.004935991946 | R23: 5.294412599e-05 | S23: 5.58323704e-05 | T23: 0.04669207931
A24: 2004 | B24: 1 | C24: 1 | D24: 22 | E24: 0.02845182066 | F24: 0.003900357844 | G24: 0.00032653447 | H24: 3.2674e-05 | I24: 0.00312302538 | J24: 8.805446237e-05 | K24: 0.03592246681 | M24: 0.03372351014 | N24: 0.005740745208 | O24: 0.0002235108278 | P24: 2.428443252e-05 | Q24: 0.005173375839 | R24: 5.294412599e-05 | S24: 5.631534119e-05 | T24: 0.04493837057
A25: 2004 | B25: 1 | C25: 1 | D25: 23 | E25: 0.0256022535 | F25: 0.003791640831 | G25: 0.00032653447 | H25: 3.2674e-05 | I25: 0.003011606085 | J25: 8.805446237e-05 | K25: 0.03285276335 | M25: 0.03034596154 | N25: 0.005580729975 | O25: 0.0002235108278 | P25: 2.428443252e-05 | Q25: 0.00498880677 | R25: 5.294412599e-05 | S25: 5.474562992e-05 | T25: 0.04121623767
A26: 2004 | B26: 1 | C26: 1 | D26: 24 | E26: 0.02170585637 | F26: 0.003871399417 | G26: 0.00032653447 | H26: 3.2674e-05 | I26: 0.003339875977 | J26: 8.805446237e-05 | K26: 0.02936439469 | M26: 0.0257276213 | N26: 0.005698122721 | O26: 0.0002235108278 | P26: 2.428443252e-05 | Q26: 0.005532594707 | R26: 5.294412599e-05 | S26: 5.589722476e-05 | T26: 0.03725907812
A27: 2004 | B27: 1 | C27: 2 | D27: 1 | E27: 0.01841335106 | F27: 0.003949737271 | G27: 0.00032653447 | H27: 3.2674e-05 | I27: 0.002895293782 | J27: 8.805446237e-05 | K27: 0.02570564504 | M27: 0.02182506486 | N27: 0.005813424363 | O27: 0.0002235108278 | P27: 2.428443252e-05 | Q27: 0.004796132301 | R27: 5.294412599e-05 | S27: 5.702830636e-05 | T27: 0.03273536091
A28: 2004 | B28: 1 | C28: 2 | D28: 2 | E28: 0.01679180312 | F28: 0.003925314934 | G28: 0.00032653447 | H28: 3.2674e-05 | I28: 0.002922944596 | J28: 8.805446237e-05 | K28: 0.02408732558 | M28: 0.01990306875 | N28: 0.005777478325 | O28: 0.0002235108278 | P28: 2.428443252e-05 | Q28: 0.00484193662 | R28: 5.294412599e-05 | S28: 5.66756843e-05 | T28: 0.03082322308
A29: 2004 | B29: 1 | C29: 2 | D29: 3 | E29: 0.01590371846 | F29: 0.003845546386 | G29: 0.00032653447 | H29: 3.2674e-05 | I29: 0.002874646659 | J29: 8.805446237e-05 | K29: 0.02307117443 | M29: 0.01885043551 | N29: 0.005660070915 | O29: 0.0002235108278 | P29: 2.428443252e-05 | Q29: 0.004761929783 | R29: 5.294412599e-05 | S29: 5.552394562e-05 | T29: 0.0295731756
A30: 2004 | B30: 1 | C30: 2 | D30: 4 | E30: 0.01537217536 | F30: 0.003907072926 | G30: 0.00032653447 | H30: 3.2674e-05 | I30: 0.002995810719 | J30: 8.805446237e-05 | K30: 0.02272232194 | M30: 0.01822040557 | N30: 0.005750628809 | O30: 0.0002235108278 | P30: 2.428443252e-05 | Q30: 0.004962641319 | R30: 5.294412599e-05 | S30: 5.641229696e-05 | T30: 0.02923441508
A31: 2004 | B31: 1 | C31: 2 | D31: 5 | E31: 0.01546593429 | F31: 0.003921326826 | G31: 0.00032653447 | H31: 3.2674e-05 | I31: 0.003033998472 | J31: 8.805446237e-05 | K31: 0.02286852252 | M31: 0.01833153661 | N31: 0.005771608424 | O31: 0.0002235108278 | P31: 2.428443252e-05 | Q31: 0.005025900363 | R31: 5.294412599e-05 | S31: 5.661810198e-05 | T31: 0.02942978478
A32: 2004 | B32: 1 | C32: 2 | D32: 6 | E32: 0.01611467391 | F32: 0.003963499829 | G32: 0.00032653447 | H32: 3.2674e-05 | I32: 0.002949592623 | J32: 8.805446237e-05 | K32: 0.0234750293 | M32: 0.01910047781 | N32: 0.005833680796 | O32: 0.0002235108278 | P32: 2.428443252e-05 | Q32: 0.004886079796 | R32: 5.294412599e-05 | S32: 5.722701715e-05 | T32: 0.03012097778
A33: 2004 | B33: 1 | C33: 2 | D33: 7 | E33: 0.01717898647 | F33: 0.0042131765 | G33: 0.00032653447 | H33: 3.2674e-05 | I33: 0.002858750275 | J33: 8.805446237e-05 | K33: 0.02469817618 | M33: 0.02036199129 | N33: 0.006201167629 | O33: 0.0002235108278 | P33: 2.428443252e-05 | Q33: 0.004735596996 | R33: 5.294412599e-05 | S33: 6.083197532e-05 | T33: 0.0315994953
A34: 2004 | B34: 1 | C34: 2 | D34: 8 | E34: 0.0192425402 | F34: 0.00476714023 | G34: 0 | H34: 0 | I34: 0.003004035036 | J34: 8.805446237e-05 | K34: 0.02710176992 | M34: 0.02280789012 | N34: 0.007016519645 | O34: 0 | P34: 0 | Q34: 0.004976265123 | R34: 5.294412599e-05 | S34: 6.883038412e-05 | T34: 0.03485361902
A35: 2004 | B35: 1 | C35: 2 | D35: 9 | E35: 0.02117472669 | F35: 0.005127052588 | G35: 0 | H35: 0 | I35: 0.002946170352 | J35: 8.805446237e-05 | K35: 0.02933600409 | M35: 0.02509808138 | N35: 0.007546256973 | O35: 0 | P35: 0 | Q35: 0.004880410712 | R35: 5.294412599e-05 | S35: 7.402698095e-05 | T35: 0.03757769319
A36: 2004 | B36: 1 | C36: 2 | D36: 10 | E36: 0.02234525857 | F36: 0.00518824345 | G36: 0 | H36: 0 | I36: 0.00280008507 | J36: 8.805446237e-05 | K36: 0.03042164155 | M36: 0.02648549501 | N36: 0.007636320798 | O36: 0 | P36: 0 | Q36: 0.004638416499 | R36: 5.294412599e-05 | S36: 7.49104856e-05 | T36: 0.03881317643
A37: 2004 | B37: 1 | C37: 2 | D37: 11 | E37: 0.02344756802 | F37: 0.005476518637 | G37: 0 | H37: 0 | I37: 0.003096573789 | J37: 8.805446237e-05 | K37: 0.03210871491 | M37: 0.02779204563 | N37: 0.008060618892 | O37: 0 | P37: 0 | Q37: 0.005129558065 | R37: 5.294412599e-05 | S37: 7.907274869e-05 | T37: 0.04103516671
A38: 2004 | B38: 1 | C38: 2 | D38: 12 | E38: 0.02390689464 | F38: 0.005535305048 | G38: 0 | H38: 0 | I38: 0.003266754552 | J38: 8.805446237e-05 | K38: 0.0327970087 | M38: 0.02833647848 | N38: 0.008147143725 | O38: 0 | P38: 0 | Q38: 0.005411467093 | R38: 5.294412599e-05 | S38: 7.992153666e-05 | T38: 0.04194803342
A39: 2004 | B39: 1 | C39: 2 | D39: 13 | E39: 0.02349537047 | F39: 0.00551147748 | G39: 0 | H39: 0 | I39: 0.003334436532 | J39: 8.805446237e-05 | K39: 0.03242933894 | M39: 0.02784870514 | N39: 0.008112073097 | O39: 0 | P39: 0 | Q39: 0.005523584119 | R39: 5.294412599e-05 | S39: 7.957750216e-05 | T39: 0.04153730648
A40: 2004 | B40: 1 | C40: 2 | D40: 14 | E40: 0.02330818826 | F40: 0.005264933085 | G40: 0 | H40: 0 | I40: 0.002783853493 | J40: 8.805446237e-05 | K40: 0.0314450293 | M40: 0.02762684092 | N40: 0.007749196507 | O40: 0 | P40: 0 | Q40: 0.004611528455 | R40: 5.294412599e-05 | S40: 7.601776937e-05 | T40: 0.04004051001
A41: 2004 | B41: 1 | C41: 2 | D41: 15 | E41: 0.02261847899 | F41: 0.005278170198 | G41: 0 | H41: 0 | I41: 0.002984098711 | J41: 8.805446237e-05 | K41: 0.03096880236 | M41: 0.02680933901 | N41: 0.007768679563 | O41: 0 | P41: 0 | Q41: 0.004943240063 | R41: 5.294412599e-05 | S41: 7.620889351e-05 | T41: 0.03957420277
A42: 2004 | B42: 1 | C42: 2 | D42: 16 | E42: 0.02332805741 | F42: 0.005198418587 | G42: 0 | H42: 0 | I42: 0.0032054052 | J42: 8.805446237e-05 | K42: 0.03181993566 | M42: 0.02765039152 | N42: 0.007651297084 | O42: 0 | P42: 0 | Q42: 0.005309840236 | R42: 5.294412599e-05 | S42: 7.505739938e-05 | T42: 0.04066447296
A43: 2004 | B43: 1 | C43: 2 | D43: 17 | E43: 0.02564908802 | F43: 0.004982641848 | G43: 0 | H43: 0 | I43: 0.003015212291 | J43: 8.805446237e-05 | K43: 0.03373499662 | M43: 0.03040147379 | N43: 0.007333705896 | O43: 0 | P43: 0 | Q43: 0.004994780548 | R43: 5.294412599e-05 | S43: 7.194190558e-05 | T43: 0.04278290436
A44: 2004 | B44: 1 | C44: 2 | D44: 18 | E44: 0.03016355005 | F44: 0.00493797778 | G44: 0.00032653447 | H44: 3.2674e-05 | I44: 0.002811731435 | J44: 8.805446237e-05 | K44: 0.03836052219 | M44: 0.03575239694 | N44: 0.007267967047 | O44: 0.0002235108278 | P44: 2.428443252e-05 | Q44: 0.004657709017 | R44: 5.294412599e-05 | S44: 7.129702316e-05 | T44: 0.04797881239
A45: 2004 | B45: 1 | C45: 2 | D45: 19 | E45: 0.03077902343 | F45: 0.004790545976 | G45: 0.00032653447 | H45: 3.2674e-05 | I45: 0.002651284264 | J45: 8.805446237e-05 | K45: 0.03866811661 | M45: 0.03648190818 | N45: 0.007050969413 | O45: 0.0002235108278 | P45: 2.428443252e-05 | Q45: 0.004391923948 | R45: 5.294412599e-05 | S45: 6.916832813e-05 | T45: 0.04822554093
A46: 2004 | B46: 1 | C46: 2 | D46: 20 | E46: 0.02926200939 | F46: 0.004818731205 | G46: 0.00032653447 | H46: 3.2674e-05 | I46: 0.002833011811 | J46: 8.805446237e-05 | K46: 0.03736101534 | M46: 0.03468381452 | N46: 0.007092453867 | O46: 0.0002235108278 | P46: 2.428443252e-05 | Q46: 0.004692960535 | R46: 5.294412599e-05 | S46: 6.957528072e-05 | T46: 0.04676996831
A47: 2004 | B47: 1 | C47: 2 | D47: 21 | E47: 0.02815481371 | F47: 0.004706377382 | G47: 0.00032653447 | H47: 3.2674e-05 | I47: 0.002768617412 | J47: 8.805446237e-05 | K47: 0.03607707144 | M47: 0.03337147232 | N47: 0.006927085793 | O47: 0.0002235108278 | P47: 2.428443252e-05 | Q47: 0.004586289475 | R47: 5.294412599e-05 | S47: 6.795305936e-05 | T47: 0.04518558697
A48: 2004 | B48: 1 | C48: 2 | D48: 22 | E48: 0.02684001927 | F48: 0.004508628178 | G48: 0.00032653447 | H48: 3.2674e-05 | I48: 0.002793841467 | J48: 8.805446237e-05 | K48: 0.03458975184 | M48: 0.03181306647 | N48: 0.006636028447 | O48: 0.0002235108278 | P48: 2.428443252e-05 | Q48: 0.004628073802 | R48: 5.294412599e-05 | S48: 6.509785622e-05 | T48: 0.04337790811
A49: 2004 | B49: 1 | C49: 2 | D49: 23 | E49: 0.02445071427 | F49: 0.004109814821 | G49: 0.00032653447 | H49: 3.2674e-05 | I49: 0.00262613953 | J49: 8.805446237e-05 | K49: 0.03163393155 | M49: 0.02898105961 | N49: 0.006049034648 | O49: 0.0002235108278 | P49: 2.428443252e-05 | Q49: 0.004350271017 | R49: 5.294412599e-05 | S49: 5.933958707e-05 | T49: 0.03968110467
A50: 2004 | B50: 1 | C50: 2 | D50: 24 | E50: 0.02106421509 | F50: 0.003872555574 | G50: 0.00032653447 | H50: 3.2674e-05 | I50: 0.002890946584 | J50: 8.805446237e-05 | K50: 0.02827498018 | M50: 0.02496709366 | N50: 0.005699824412 | O50: 0.0002235108278 | P50: 2.428443252e-05 | Q50: 0.00478893105 | R50: 5.294412599e-05 | S50: 5.591391794e-05 | T50: 0.03575658851
A51: 2004 | B51: 1 | C51: 3 | D51: 1 | E51: 0.01926806026 | F51: 0.003693133818 | G51: 0.00032653447 | H51: 3.2674e-05 | I51: 0.002881303983 | J51: 8.805446237e-05 | K51: 0.02628976099 | M51: 0.02283813867 | N51: 0.005435742339 | O51: 0.0002235108278 | P51: 2.428443252e-05 | Q51: 0.004772957822 | R51: 5.294412599e-05 | S51: 5.332333579e-05 | T51: 0.03334757821
A52: 2004 | B52: 1 | C52: 3 | D52: 2 | E52: 0.01769439511 | F52: 0.003660900943 | G52: 0.00032653447 | H52: 3.2674e-05 | I52: 0.002964923621 | J52: 8.805446237e-05 | K52: 0.0247674826 | M52: 0.0209728973 | N52: 0.005388300352 | O52: 0.0002235108278 | P52: 2.428443252e-05 | Q52: 0.004911476009 | R52: 5.294412599e-05 | S52: 5.285794122e-05 | T52: 0.03157341305
A53: 2004 | B53: 1 | C53: 3 | D53: 3 | E53: 0.0169853561 | F53: 0.003612694701 | G53: 0.00032653447 | H53: 3.2674e-05 | I53: 0.002941213427 | J53: 8.805446237e-05 | K53: 0.02398652716 | M53: 0.02013248415 | N53: 0.005317347952 | O53: 0.0002235108278 | P53: 2.428443252e-05 | Q53: 0.004872199433 | R53: 5.294412599e-05 | S53: 5.21619151e-05 | T53: 0.03062277092
A54: 2004 | B54: 1 | C54: 3 | D54: 4 | E54: 0.01671006268 | F54: 0.003631887387 | G54: 0.00032653447 | H54: 3.2674e-05 | I54: 0.00303216805 | J54: 8.805446237e-05 | K54: 0.02382138105 | M54: 0.01980618305 | N54: 0.005345596725 | O54: 0.0002235108278 | P54: 2.428443252e-05 | Q54: 0.00502286822 | R54: 5.294412599e-05 | S54: 5.243902882e-05 | T54: 0.03047538738
A55: 2004 | B55: 1 | C55: 3 | D55: 5 | E55: 0.01640164176 | F55: 0.00367812979 | G55: 0.00032653447 | H55: 3.2674e-05 | I55: 0.003107182266 | J55: 8.805446237e-05 | K55: 0.02363421675 | M55: 0.01944061643 | N55: 0.005413658647 | O55: 0.0002235108278 | P55: 2.428443252e-05 | Q55: 0.005147131294 | R55: 5.294412599e-05 | S55: 5.310670005e-05 | T55: 0.03030214576
A56: 2004 | B56: 1 | C56: 3 | D56: 6 | E56: 0.01725971523 | F56: 0.003685529841 | G56: 0.00032653447 | H56: 3.2674e-05 | I56: 0.00304468238 | J56: 8.805446237e-05 | K56: 0.02443719038 | M56: 0.02045767786 | N56: 0.005424550418 | O56: 0.0002235108278 | P56: 2.428443252e-05 | Q56: 0.005043598545 | R56: 5.294412599e-05 | S56: 5.321354572e-05 | T56: 0.03122656621
A57: 2004 | B57: 1 | C57: 3 | D57: 7 | E57: 0.01840381311 | F57: 0.00382145038 | G57: 0.00032653447 | H57: 3.2674e-05 | I57: 0.003045463713 | J57: 8.805446237e-05 | K57: 0.02571799014 | M57: 0.02181375967 | N57: 0.005624605186 | O57: 0.0002235108278 | P57: 2.428443252e-05 | Q57: 0.005044892844 | R57: 5.294412599e-05 | S57: 5.517603528e-05 | T57: 0.03278399709
A58: 2004 | B58: 1 | C58: 3 | D58: 8 | E58: 0.02051915436 | F58: 0.004124824528 | G58: 0 | H58: 0 | I58: 0.003217995093 | J58: 8.805446237e-05 | K58: 0.02795002844 | M58: 0.02432104147 | N58: 0.0060711267 | O58: 0 | P58: 0 | Q58: 0.005330695733 | R58: 5.294412599e-05 | S58: 5.955630482e-05 | T58: 0.03577580802
A59: 2004 | B59: 1 | C59: 3 | D59: 9 | E59: 0.02266131243 | F59: 0.004094061881 | G59: 0 | H59: 0 | I59: 0.003003943046 | J59: 8.805446237e-05 | K59: 0.02984737182 | M59: 0.02686010884 | N59: 0.00602584867 | O59: 0 | P59: 0 | Q59: 0.004976112739 | R59: 5.294412599e-05 | S59: 5.911213815e-05 | T59: 0.03791501437
A60: 2004 | B60: 1 | C60: 3 | D60: 10 | E60: 0.02454438379 | F60: 0.00429381472 | G60: 0 | H60: 0 | I60: 0.003105450031 | J60: 8.805446237e-05 | K60: 0.032031703 | M60: 0.02909208466 | N60: 0.006319855067 | O60: 0 | P60: 0 | Q60: 0.0051442618 | R60: 5.294412599e-05 | S60: 6.199627078e-05 | T60: 0.04060914566
A61: 2004 | B61: 1 | C61: 3 | D61: 11 | E61: 0.02510802462 | F61: 0.004425716045 | G61: 0 | H61: 0 | I61: 0.003237103269 | J61: 8.805446237e-05 | K61: 0.0328588984 | M61: 0.02976015957 | N61: 0.00651399415 | O61: 0 | P61: 0 | Q61: 0.005362348942 | R61: 5.294412599e-05 | S61: 6.390072887e-05 | T61: 0.04168944679
A62: 2004 | B62: 1 | C62: 3 | D62: 12 | E62: 0.02515402602 | F62: 0.004442366829 | G62: 0 | H62: 0 | I62: 0.003273536555 | J62: 8.805446237e-05 | K62: 0.03295798387 | M62: 0.02981468433 | N62: 0.006538501621 | O62: 0 | P62: 0 | Q62: 0.005422701664 | R62: 5.294412599e-05 | S62: 6.414114132e-05 | T62: 0.04182883174
A63: 2004 | B63: 1 | C63: 3 | D63: 13 | E63: 0.0253200924 | F63: 0.004294446667 | G63: 0 | H63: 0 | I63: 0.003041804908 | J63: 8.805446237e-05 | K63: 0.03274439844 | M63: 0.03001152029 | N63: 0.006320785198 | O63: 0 | P63: 0 | Q63: 0.005038831936 | R63: 5.294412599e-05 | S63: 6.200539514e-05 | T63: 0.04142408155
A64: 2004 | B64: 1 | C64: 3 | D64: 14 | E64: 0.02434948795 | F64: 0.00418620416 | G64: 0 | H64: 0 | I64: 0.002943343793 | J64: 8.805446237e-05 | K64: 0.03156709037 | M64: 0.0288610776 | N64: 0.006161468366 | O64: 0 | P64: 0 | Q64: 0.004875728441 | R64: 5.294412599e-05 | S64: 6.044253502e-05 | T64: 0.03995121853
A65: 2004 | B65: 1 | C65: 3 | D65: 15 | E65: 0.02388329325 | F65: 0.004007338308 | G65: 0 | H65: 0 | I65: 0.002701019824 | J65: 8.805446237e-05 | K65: 0.03067970585 | M65: 0.02830850411 | N65: 0.005898204501 | O65: 0 | P65: 0 | Q65: 0.004474312245 | R65: 5.294412599e-05 | S65: 5.78599793e-05 | T65: 0.03873396498
A66: 2004 | B66: 1 | C66: 3 | D66: 16 | E66: 0.02396697916 | F66: 0.004028096762 | G66: 0 | H66: 0 | I66: 0.002854201238 | J66: 8.805446237e-05 | K66: 0.03093733162 | M66: 0.02840769574 | N66: 0.005928757851 | O66: 0 | P66: 0 | Q66: 0.004728061393 | R66: 5.294412599e-05 | S66: 5.815970037e-05 | T66: 0.03911745911
A67: 2004 | B67: 1 | C67: 3 | D67: 17 | E67: 0.02622154041 | F67: 0.004145612065 | G67: 0 | H67: 0 | I67: 0.003049595474 | J67: 8.805446237e-05 | K67: =SUM(E67:J67) -> 0.03350480241 | M67: =E67*W$5 -> 0.03107999289 | N67: 0.006101722854 | O67: =G67*Y$5 -> 0 | P67: =H67*Z$5 -> 0 | Q67: =I67*AA$5 -> 0.005051737219 | R67: =J67*AB$5 -> 5.294412599e-05 | S67: 5.98564458e-05 | T67: =SUM(M67:R67) -> 0.04228639709
A68: 2004 | B68: 1 | C68: 3 | D68: 18 | E68: 0.0303176792 | F68: 0.004445492549 | G68: 0.00032653447 | H68: 3.2674e-05 | I68: 0.002999924606 | J68: 8.805446237e-05 | K68: 0.03821035929 | M68: 0.03593508388 | N68: =(F68*X$5)-S68 -> 0.006543102216 | O68: 0.0002235108278 | P68: 2.428443252e-05 | Q68: 0.004969456086 | R68: 5.294412599e-05 | S68: =(F68*$AC$7)*$AC$5 -> 6.418627206e-05 | T68: 0.04774838157
A69: 2004 | B69: 1 | C69: 3 | D69: 19 | E69: 0.03056026786 | F69: 0.004623238771 | G69: 0.00032653447 | H69: 3.2674e-05 | I69: 0.003124939456 | J69: 8.805446237e-05 | K69: 0.03875570902 | M69: 0.03622262053 | N69: 0.006804718153 | O69: 0.0002235108278 | P69: 2.428443252e-05 | Q69: 0.005176546558 | R69: 5.294412599e-05 | S69: 6.6752662e-05 | T69: 0.04850462463
A70: 2004 | B70: 1 | C70: 3 | D70: 20 | E70: 0.02908436176 | F70: 0.00441852618 | G70: 0.00032653447 | H70: 3.2674e-05 | I70: 0.002925094329 | J70: 8.805446237e-05 | K70: 0.0368752452 | M70: 0.03447325148 | N70: 0.006503411742 | O70: 0.0002235108278 | P70: 2.428443252e-05 | Q70: 0.004845497711 | R70: 5.294412599e-05 | S70: 6.379691797e-05 | T70: 0.04612290032
A71: 2004 | B71: 1 | C71: 3 | D71: 21 | E71: 0.02795053988 | F71: 0.004385362153 | G71: 0.00032653447 | H71: 3.2674e-05 | I71: 0.003024873154 | J71: 8.805446237e-05 | K71: 0.03580803812 | M71: 0.03312934965 | N71: 0.006454599238 | O71: 0.0002235108278 | P71: 2.428443252e-05 | Q71: 0.005010784028 | R71: 5.294412599e-05 | S71: 6.331807895e-05 | T71: 0.04489547231
A72: 2004 | B72: 1 | C72: 3 | D72: 22 | E72: 0.026781027 | F72: 0.004351235301 | G72: 0.00032653447 | H72: 3.2674e-05 | I72: 0.003134879298 | J72: 8.805446237e-05 | K72: 0.03471440453 | M72: 0.03174314384 | N72: 0.0064043696 | O72: 0.0002235108278 | P72: 2.428443252e-05 | Q72: 0.005193012175 | R72: 5.294412599e-05 | S72: 6.282533819e-05 | T72: 0.043641265
A73: 2004 | B73: 1 | C73: 3 | D73: 23 | E73: 0.02465963895 | F73: 0.00419148178 | G73: 0.00032653447 | H73: 3.2674e-05 | I73: 0.003092233917 | J73: 8.805446237e-05 | K73: 0.03239061758 | M73: 0.02922869486 | N73: 0.006169236237 | O73: 0.0002235108278 | P73: 2.428443252e-05 | Q73: 0.00512236895 | R73: 5.294412599e-05 | S73: 6.051873598e-05 | T73: 0.04082103943
A74: 2004 | B74: 1 | C74: 3 | D74: 24 | E74: 0.02207325087 | F74: 0.00383099457 | G74: 0.00032653447 | H74: 3.2674e-05 | I74: 0.003142084225 | J74: 8.805446237e-05 | K74: 0.0294935926 | M74: 0.02616308842 | N74: 0.005638652811 | O74: 0.0002235108278 | P74: 2.428443252e-05 | Q74: 0.005204947331 | R74: 5.294412599e-05 | S74: 5.531383913e-05 | T74: 0.03730742795
A75: 2004 | B75: 1 | C75: 4 | D75: 1 | E75: 0.01808371901 | F75: 0.003387134058 | G75: 0.00032653447 | H75: 3.2674e-05 | I75: 0.00286933705 | J75: 8.805446237e-05 | K75: 0.02478745305 | M75: 0.021434357 | N75: 0.004985356317 | O75: 0.0002235108278 | P75: 2.428443252e-05 | Q75: 0.004753134273 | R75: 5.294412599e-05 | S75: 4.890515635e-05 | T75: 0.03147358698
A76: 2004 | B76: 1 | C76: 4 | D76: 2 | E76: 0.01677539907 | F76: 0.003469072013 | G76: 0.00032653447 | H76: 3.2674e-05 | I76: 0.003029597382 | J76: 8.805446237e-05 | K76: 0.0237213314 | M76: 0.01988362528 | N76: 0.00510595677 | O76: 0.0002235108278 | P76: 2.428443252e-05 | Q76: 0.005018609839 | R76: 5.294412599e-05 | S76: 5.008821803e-05 | T76: 0.03030893128
A77: 2004 | B77: 1 | C77: 4 | D77: 3 | E77: 0.01596849251 | F77: 0.003450272074 | G77: 0.00032653447 | H77: 3.2674e-05 | I77: 0.003062040727 | J77: 8.805446237e-05 | K77: 0.02292806824 | M77: 0.01892721121 | N77: 0.005078286062 | O77: 0.0002235108278 | P77: 2.428443252e-05 | Q77: 0.005072353116 | R77: 5.294412599e-05 | S77: 4.981677498e-05 | T77: 0.02937858977
A78: 2004 | B78: 1 | C78: 4 | D78: 4 | E78: 0.01569781706 | F78: 0.00349232012 | G78: 0.00032653447 | H78: 3.2674e-05 | I78: 0.003155267187 | J78: 8.805446237e-05 | K78: 0.0227926673 | M78: 0.01860638372 | N78: 0.005140174516 | O78: 0.0002235108278 | P78: 2.428443252e-05 | Q78: 0.005226785263 | R78: 5.294412599e-05 | S78: 5.042388596e-05 | T78: 0.02927408289
A79: 2004 | B79: 1 | C79: 4 | D79: 5 | E79: 0.01604536056 | F79: 0.003477160472 | G79: 0.00032653447 | H79: 3.2674e-05 | I79: 0.003138821505 | J79: 8.805446237e-05 | K79: 0.02310860547 | M79: 0.01901832175 | N79: 0.005117861775 | O79: 0.0002235108278 | P79: 2.428443252e-05 | Q79: 0.005199542548 | R79: 5.294412599e-05 | S79: 5.020500329e-05 | T79: 0.02963646546
A80: 2004 | B80: 1 | C80: 4 | D80: 6 | E80: 0.01624631708 | F80: 0.003474278758 | G80: 0.00032653447 | H80: 3.2674e-05 | I80: 0.003137010545 | J80: 8.805446237e-05 | K80: 0.02330486931 | M80: 0.01925651245 | N80: 0.005113620322 | O80: 0.0002235108278 | P80: 2.428443252e-05 | Q80: 0.005196542643 | R80: 5.294412599e-05 | S80: 5.016339564e-05 | T80: 0.0298674148
A81: 2004 | B81: 1 | C81: 4 | D81: 7 | E81: 0.01705737004 | F81: 0.003533809016 | G81: 0.00032653447 | H81: 3.2674e-05 | I81: 0.003108245678 | J81: 8.805446237e-05 | K81: 0.02414668766 | M81: 0.02021784118 | N81: 0.005201239986 | O81: 0.0002235108278 | P81: 2.428443252e-05 | Q81: 0.005148892864 | R81: 5.294412599e-05 | S81: 5.102292365e-05 | T81: 0.03086871342
A82: 2004 | B82: 1 | C82: 4 | D82: 8 | E82: 0.01937316507 | F82: 0.003796736444 | G82: 0 | H82: 0 | I82: 0.003294510782 | J82: 8.805446237e-05 | K82: 0.02655246675 | M82: 0.0229627178 | N82: 0.005588229958 | O82: 0 | P82: 0 | Q82: 0.005457446036 | R82: 5.294412599e-05 | S82: 5.481920297e-05 | T82: 0.03406133792
A83: 2004 | B83: 1 | C83: 4 | D83: 9 | E83: 0.02090621243 | F83: 0.003687648148 | G83: 0 | H83: 0 | I83: 0.002981806391 | J83: 8.805446237e-05 | K83: 0.02766372143 | M83: 0.02477981551 | N83: 0.005427668251 | O83: 0 | P83: 0 | Q83: 0.004939442773 | R83: 5.294412599e-05 | S83: 5.324413092e-05 | T83: 0.03519987066
A84: 2004 | B84: 1 | C84: 4 | D84: 10 | E84: 0.02313503742 | F84: 0.00378363639 | G84: 0 | H84: 0 | I84: 0.003012165344 | J84: 8.805446237e-05 | K84: 0.03001889362 | M84: 0.02742160786 | N84: 0.005568948631 | O84: 0 | P84: 0 | Q84: 0.004989733198 | R84: 5.294412599e-05 | S84: 5.463005775e-05 | T84: 0.03803323382
A85: 2004 | B85: 1 | C85: 4 | D85: 11 | E85: 0.02353027877 | F85: 0.003935486267 | G85: 0 | H85: 0 | I85: 0.003069593658 | J85: 8.805446237e-05 | K85: 0.03062341316 | M85: 0.02789008142 | N85: 0.00579244901 | O85: 0 | P85: 0 | Q85: 0.005084864749 | R85: 5.294412599e-05 | S85: 5.682254316e-05 | T85: 0.0388203393
A86: 2004 | B86: 1 | C86: 4 | D86: 12 | E86: 0.02364811449 | F86: 0.003840700593 | G86: 0 | H86: 0 | I86: 0.002734710269 | J86: 8.805446237e-05 | K86: 0.03031157981 | M86: 0.0280297503 | N86: 0.00565293863 | O86: 0 | P86: 0 | Q86: 0.004530121378 | R86: 5.294412599e-05 | S86: 5.54539796e-05 | T86: 0.03826575444
A87: 2004 | B87: 1 | C87: 4 | D87: 13 | E87: 0.02337975626 | F87: 0.003749044433 | G87: 0 | H87: 0 | I87: 0.002577735163 | J87: 8.805446237e-05 | K87: 0.02979459031 | M87: 0.02771166937 | N87: 0.005518034428 | O87: 0 | P87: 0 | Q87: 0.004270087876 | R87: 5.294412599e-05 | S87: 5.413060156e-05 | T87: 0.0375527358
A88: 2004 | B88: 1 | C88: 4 | D88: 14 | E88: 0.02268732739 | F88: 0.003779136836 | G88: 0 | H88: 0 | I88: 0.00265196299 | J88: 8.805446237e-05 | K88: 0.02920648168 | M88: 0.02689094397 | N88: 0.005562325959 | O88: 0 | P88: 0 | Q88: 0.004393048276 | R88: 5.294412599e-05 | S88: 5.456509092e-05 | T88: 0.03689926233
A89: 2004 | B89: 1 | C89: 4 | D89: 15 | E89: 0.02202271161 | F89: 0.003838103016 | G89: 0 | H89: 0 | I89: 0.002879442695 | J89: 8.805446237e-05 | K89: 0.02882831178 | M89: 0.026103185 | N89: 0.005649115384 | O89: 0 | P89: 0 | Q89: 0.004769874547 | R89: 5.294412599e-05 | S89: 5.541647447e-05 | T89: 0.03657511906
A90: 2004 | B90: 1 | C90: 4 | D90: 16 | E90: 0.02293733549 | F90: 0.003734324426 | G90: 0 | H90: 0 | I90: 0.002729880153 | J90: 8.805446237e-05 | K90: 0.02948959454 | M90: 0.02718727478 | N90: 0.005496368773 | O90: 0 | P90: 0 | Q90: 0.00452212016 | R90: 5.294412599e-05 | S90: 5.391806665e-05 | T90: 0.03725870783
A91: 2004 | B91: 1 | C91: 4 | D91: 17 | E91: 0.02557954294 | F91: 0.00378778406 | G91: 0 | H91: 0 | I91: 0.002749093003 | J91: 8.805446237e-05 | K91: 0.03220447447 | M91: 0.03031904306 | N91: 0.005575053382 | O91: 0 | P91: 0 | Q91: 0.004553946764 | R91: 5.294412599e-05 | S91: 5.46899439e-05 | T91: 0.04050098733
A92: 2004 | B92: 1 | C92: 4 | D92: 18 | E92: 0.02866944884 | F92: 0.00374957272 | G92: 0.00032653447 | H92: 3.2674e-05 | I92: 0.002537230351 | J92: 8.805446237e-05 | K92: 0.03540351485 | M92: 0.03398146151 | N92: 0.005518811987 | O92: 0.0002235108278 | P92: 2.428443252e-05 | Q92: 0.004202990563 | R92: 5.294412599e-05 | S92: 5.413822923e-05 | T92: 0.04400400345
A93: 2004 | B93: 1 | C93: 4 | D93: 19 | E93: 0.02947126585 | F93: 0.00360909434 | G93: 0.00032653447 | H93: 3.2674e-05 | I93: 0.002362107393 | J93: 8.805446237e-05 | K93: 0.03588973051 | M93: 0.03493184301 | N93: 0.005312048757 | O93: 0.0002235108278 | P93: 2.428443252e-05 | Q93: 0.003912894656 | R93: 5.294412599e-05 | S93: 5.210993126e-05 | T93: 0.04445752581
A94: 2004 | B94: 1 | C94: 4 | D94: 20 | E94: 0.02827572404 | F94: 0.003425223018 | G94: 0.00032653447 | H94: 3.2674e-05 | I94: 0.002230216531 | J94: 8.805446237e-05 | K94: 0.03437842653 | M94: 0.0335147855 | N94: 0.005041417587 | O94: 0.0002235108278 | P94: 2.428443252e-05 | Q94: 0.003694413882 | R94: 5.294412599e-05 | S94: 4.945510404e-05 | T94: 0.04255135636
A95: 2004 | B95: 1 | C95: 4 | D95: 21 | E95: 0.02735750983 | F95: 0.003362235126 | G95: 0.00032653447 | H95: 3.2674e-05 | I95: 0.002254715316 | J95: 8.805446237e-05 | K95: 0.0334217232 | M95: 0.03242644016 | N95: 0.004948708801 | O95: 0.0002235108278 | P95: 2.428443252e-05 | Q95: 0.003734996782 | R95: 5.294412599e-05 | S95: 4.854565295e-05 | T95: 0.04141088513
A96: 2004 | B96: 1 | C96: 4 | D96: 22 | E96: 0.0253821467 | F96: 0.003316171736 | G96: 0.00032653447 | H96: 3.2674e-05 | I96: 0.002246477653 | J96: 8.805446237e-05 | K96: 0.03139205902 | M96: 0.0300850723 | N96: 0.004880910359 | O96: 0.0002235108278 | P96: 2.428443252e-05 | Q96: 0.00372135087 | R96: 5.294412599e-05 | S96: 4.788056642e-05 | T96: 0.03898807292
A97: 2004 | B97: 1 | C97: 4 | D97: 23 | E97: 0.02232700234 | F97: 0.003270816805 | G97: 0.00032653447 | H97: 3.2674e-05 | I97: 0.002253249837 | J97: 8.805446237e-05 | K97: 0.02829833191 | M97: 0.02646385617 | N97: 0.004814154662 | O97: 0.0002235108278 | P97: 2.428443252e-05 | Q97: 0.003732569176 | R97: 5.294412599e-05 | S97: 4.722570895e-05 | T97: 0.0353113194
A98: 2004 | B98: 1 | C98: 4 | D98: 24 | E98: 0.01902174292 | F98: 0.003470496918 | G98: 0.00032653447 | H98: 3.2674e-05 | I98: 0.002641213204 | J98: 8.805446237e-05 | K98: 0.02558071598 | M98: 0.02254618247 | N98: 0.005108054017 | O98: 0.0002235108278 | P98: 2.428443252e-05 | Q98: 0.004375240965 | R98: 5.294412599e-05 | S98: 5.010879151e-05 | T98: 0.03233021684
A99: 2004 | B99: 1 | C99: 5 | D99: 1 | E99: 0.02103001505 | F99: 0.003876548663 | G99: 0.00032653447 | H99: 3.2674e-05 | I99: 0.003183693656 | J99: 8.805446237e-05 | K99: 0.0285375203 | M99: 0.02492655687 | N99: 0.005705701644 | O99: 0.0002235108278 | P99: 2.428443252e-05 | Q99: 0.005273874477 | R99: 5.294412599e-05 | S99: 5.597157218e-05 | T99: 0.03620687238
A100: 2004 | B100: 1 | C100: 5 | D100: 2 | E100: 0.02029420771 | F100: 0.00396999053 | G100: 0.00032653447 | H100: 3.2674e-05 | I100: 0.003494950611 | J100: 8.805446237e-05 | K100: 0.02820641179 | M100: 0.02405441563 | N100: 0.00584323414 | O100: 0.0002235108278 | P100: 2.428443252e-05 | Q100: 0.005789480024 | R100: 5.294412599e-05 | S100: 5.732073317e-05 | T100: 0.03598786918
A101: 2004 | B101: 1 | C101: 5 | D101: 3 | E101: 0.01997241962 | F101: 0.003893244237 | G101: 0.00032653447 | H101: 3.2674e-05 | I101: 0.003338914703 | J101: 8.805446237e-05 | K101: 0.02765184149 | M101: 0.0236730051 | N101: 0.005730275039 | O101: 0.0002235108278 | P101: 2.428443252e-05 | Q101: 0.00553100233 | R101: 5.294412599e-05 | S101: 5.621263133e-05 | T101: 0.03523502186
A102: 2004 | B102: 1 | C102: 5 | D102: 4 | E102: 0.0201314822 | F102: 0.003999709498 | G102: 0.00032653447 | H102: 3.2674e-05 | I102: 0.00351948899 | J102: 8.805446237e-05 | K102: 0.02809794362 | M102: 0.02386153955 | N102: 0.00588697603 | O102: 0.0002235108278 | P102: 2.428443252e-05 | Q102: 0.005830128512 | R102: 5.294412599e-05 | S102: 5.774983068e-05 | T102: 0.03587938348
A103: 2004 | B103: 1 | C103: 5 | D103: 5 | E103: 0.02078978682 | F103: 0.004063158105 | G103: 0.00032653447 | H103: 3.2674e-05 | I103: 0.003567609807 | J103: 8.805446237e-05 | K103: 0.02886781766 | M103: 0.024641818 | N103: 0.00598036292 | O103: 0.0002235108278 | P103: 2.428443252e-05 | Q103: 0.005909841944 | R103: 5.294412599e-05 | S103: 5.866593379e-05 | T103: 0.03683276225
A104: 2004 | B104: 1 | C104: 5 | D104: 6 | E104: 0.02256203835 | F104: 0.004261001624 | G104: 0.00032653447 | H104: 3.2674e-05 | I104: 0.00372282261 | J104: 8.805446237e-05 | K104: 0.03099312552 | M104: 0.02674244078 | N104: 0.006271559081 | O104: 0.0002235108278 | P104: 2.428443252e-05 | Q104: 0.006166956142 | R104: 5.294412599e-05 | S104: 6.152249867e-05 | T104: 0.03948169539
A105: 2004 | B105: 1 | C105: 5 | D105: 7 | E105: 0.0254358854 | F105: 0.004630235246 | G105: 0.00032653447 | H105: 3.2674e-05 | I105: 0.003736208566 | J105: 8.805446237e-05 | K105: 0.03424959215 | M105: 0.03014876796 | N105: 0.006815015921 | O105: 0.0002235108278 | P105: 2.428443252e-05 | Q105: 0.006189130339 | R105: 5.294412599e-05 | S105: 6.685368064e-05 | T105: 0.04345365361
A106: 2004 | B106: 1 | C106: 5 | D106: 8 | E106: 0.02738501017 | F106: 0.005228249138 | G106: 0 | H106: 0 | I106: 0.003578167305 | J106: 8.805446237e-05 | K106: 0.03627948107 | M106: 0.0324590359 | N106: 0.007695203207 | O106: 0 | P106: 0 | Q106: 0.005927330724 | R106: 5.294412599e-05 | S106: 7.548810797e-05 | T106: 0.04613451395
A107: 2004 | B107: 1 | C107: 5 | D107: 9 | E107: 0.02765314116 | F107: 0.005658837489 | G107: 0 | H107: 0 | I107: 0.003536777274 | J107: 8.805446237e-05 | K107: 0.03693681039 | M107: 0.03277684749 | N107: 0.008328965059 | O107: 0 | P107: 0 | Q107: 0.00585876702 | R107: 5.294412599e-05 | S107: 8.170516058e-05 | T107: 0.04701752369
A108: 2004 | B108: 1 | C108: 5 | D108: 10 | E108: 0.02654284378 | F108: 0.00585845881 | G108: 0 | H108: 0 | I108: 0.003483481171 | J108: 8.805446237e-05 | K108: 0.03597283822 | M108: 0.03146082889 | N108: 0.008622777881 | O108: 0 | P108: 0 | Q108: 0.005770480588 | R108: 5.294412599e-05 | S108: 8.458739428e-05 | T108: 0.04590703149
A109: 2004 | B109: 1 | C109: 5 | D109: 11 | E109: 0.02608163544 | F109: 0.005847548233 | G109: 0 | H109: 0 | I109: 0.00312619108 | J109: 8.805446237e-05 | K109: 0.03514342921 | M109: 0.03091416566 | N109: 0.008606719137 | O109: 0 | P109: 0 | Q109: 0.005178619907 | R109: 5.294412599e-05 | S109: 8.442986183e-05 | T109: 0.04475244883
A110: 2004 | B110: 1 | C110: 5 | D110: 12 | E110: 0.025682131 | F110: 0.005808396937 | G110: 0 | H110: 0 | I110: 0.00319458893 | J110: 8.805446237e-05 | K110: 0.03477317133 | M110: 0.03044063913 | N110: 0.008549094268 | O110: 0 | P110: 0 | Q110: 0.005291922791 | R110: 5.294412599e-05 | S110: 8.386457561e-05 | T110: 0.04433460032
A111: 2004 | B111: 1 | C111: 5 | D111: 13 | E111: 0.02515179881 | F111: 0.005653096849 | G111: 0 | H111: 0 | I111: 0.002961102414 | J111: 8.805446237e-05 | K111: 0.03385405254 | M111: 0.02981204446 | N111: 0.008320515693 | O111: 0 | P111: 0 | Q111: 0.004905146076 | R111: 5.294412599e-05 | S111: 8.162227431e-05 | T111: 0.04309065035
A112: 2004 | B112: 1 | C112: 5 | D112: 14 | E112: 0.02416054634 | F112: 0.005575823192 | G112: 0 | H112: 0 | I112: 0.002696214792 | J112: 8.805446237e-05 | K112: 0.03252063879 | M112: 0.02863712798 | N112: 0.008206780391 | O112: 0 | P112: 0 | Q112: 0.00446635258 | R112: 5.294412599e-05 | S112: 8.050655813e-05 | T112: 0.04136320508
A113: 2004 | B113: 1 | C113: 5 | D113: 15 | E113: 0.02370575487 | F113: 0.005483667282 | G113: 0 | H113: 0 | I113: 0.002710613812 | J113: 8.805446237e-05 | K113: 0.03198809042 | M113: 0.02809807056 | N113: 0.008071140632 | O113: 0 | P113: 0 | Q113: 0.004490204946 | R113: 5.294412599e-05 | S113: 7.917596445e-05 | T113: 0.04071236027
A114: 2004 | B114: 1 | C114: 5 | D114: 16 | E114: 0.02457593026 | F114: 0.005419428944 | G114: 0 | H114: 0 | I114: 0.00296243713 | J114: 8.805446237e-05 | K114: 0.0330458508 | M114: 0.02912947622 | N114: 0.007976591377 | O114: 0 | P114: 0 | Q114: 0.004907357069 | R114: 5.294412599e-05 | S114: 7.824845881e-05 | T114: 0.04206636879
A115: 2004 | B115: 1 | C115: 5 | D115: 17 | E115: 0.02761193148 | F115: 0.005139027247 | G115: 0 | H115: 0 | I115: 0.002686904749 | J115: 8.805446237e-05 | K115: 0.03552591794 | M115: 0.03272800228 | N115: 0.007563881886 | O115: 0 | P115: 0 | Q115: 0.004450930242 | R115: 5.294412599e-05 | S115: 7.419987714e-05 | T115: 0.04479575853
A116: 2004 | B116: 1 | C116: 5 | D116: 18 | E116: 0.03223729357 | F116: 0.004951436068 | G116: 0.00032653447 | H116: 3.2674e-05 | I116: 0.002498567879 | J116: 8.805446237e-05 | K116: 0.04013456045 | M116: 0.03821037358 | N116: 0.00728777564 | O116: 0.0002235108278 | P116: 2.428443252e-05 | Q116: 0.004138945134 | R116: 5.294412599e-05 | S116: 7.149134072e-05 | T116: 0.04993783374
A117: 2004 | B117: 1 | C117: 5 | D117: 19 | E117: 0.03358675634 | F117: 0.004938638319 | G117: 0.00032653447 | H117: 3.2674e-05 | I117: 0.002532016619 | J117: 8.805446237e-05 | K117: 0.04150467422 | M117: 0.03980987128 | N117: 0.007268939262 | O117: 0.0002235108278 | P117: 2.428443252e-05 | Q117: 0.004194353875 | R117: 5.294412599e-05 | S117: 7.130656035e-05 | T117: 0.0515739038
A118: 2004 | B118: 1 | C118: 5 | D118: 20 | E118: 0.03263732898 | F118: 0.004997894608 | G118: 0.00032653447 | H118: 3.2674e-05 | I118: 0.002963036329 | J118: 8.805446237e-05 | K118: 0.04104552285 | M118: 0.03868452947 | N118: 0.007356155683 | O118: 0.0002235108278 | P118: 2.428443252e-05 | Q118: 0.004908349659 | R118: 5.294412599e-05 | S118: 7.216213264e-05 | T118: 0.0512497742
A119: 2004 | B119: 1 | C119: 5 | D119: 21 | E119: 0.03109485946 | F119: 0.004795677 | G119: 0.00032653447 | H119: 3.2674e-05 | I119: 0.002769990154 | J119: 8.805446237e-05 | K119: 0.03910778954 | M119: 0.03685626381 | N119: 0.007058521516 | O119: 0.0002235108278 | P119: 2.428443252e-05 | Q119: 0.004588563458 | R119: 5.294412599e-05 | S119: 6.924241245e-05 | T119: 0.04880408817
A120: 2004 | B120: 1 | C120: 5 | D120: 22 | E120: 0.02977670547 | F120: 0.004613407936 | G120: 0.00032653447 | H120: 3.2674e-05 | I120: 0.002847289674 | J120: 8.805446237e-05 | K120: 0.03768466601 | M120: 0.03529387595 | N120: 0.006790248629 | O120: 0.0002235108278 | P120: 2.428443252e-05 | Q120: 0.0047166122 | R120: 5.294412599e-05 | S120: 6.661071942e-05 | T120: 0.04710147616
A121: 2004 | B121: 1 | C121: 5 | D121: 23 | E121: 0.02595119324 | F121: 0.004298824313 | G121: 0.00032653447 | H121: 3.2674e-05 | I121: 0.002728613665 | J121: 8.805446237e-05 | K121: 0.03342589415 | M121: 0.0307595545 | N121: 0.00632722844 | O121: 0.0002235108278 | P121: 2.428443252e-05 | Q121: 0.004520022188 | R121: 5.294412599e-05 | S121: 6.20686018e-05 | T121: 0.04190754452
A122: 2004 | B122: 1 | C122: 5 | D122: 24 | E122: 0.02248214247 | F122: 0.00416281778 | G122: 0.00032653447 | H122: 3.2674e-05 | I122: 0.002904307882 | J122: 8.805446237e-05 | K122: 0.02999653106 | M122: 0.02664774141 | N122: 0.006127047101 | O122: 0.0002235108278 | P122: 2.428443252e-05 | Q122: 0.004811064401 | R122: 5.294412599e-05 | S122: 6.010487062e-05 | T122: 0.03788659229
A123: 2004 | B123: 1 | C123: 6 | D123: 1 | E123: 0.02115161454 | F123: 0.004248538331 | G123: 0.00032653447 | H123: 3.2674e-05 | I123: 0.003197051766 | J123: 8.805446237e-05 | K123: 0.02904446757 | M123: 0.0250706869 | N123: 0.006253214972 | O123: 0.0002235108278 | P123: 2.428443252e-05 | Q123: 0.005296002547 | R123: 5.294412599e-05 | S123: 6.134254734e-05 | T123: 0.03692064381
A124: 2004 | B124: 1 | C124: 6 | D124: 2 | E124: 0.02040531084 | F124: 0.004355614722 | G124: 0.00032653447 | H124: 3.2674e-05 | I124: 0.003444610671 | J124: 8.805446237e-05 | K124: 0.02865279917 | M124: 0.02418610448 | N124: 0.006410815455 | O124: 0.0002235108278 | P124: 2.428443252e-05 | Q124: 0.005706090554 | R124: 5.294412599e-05 | S124: 6.288857049e-05 | T124: 0.03660374988
A125: 2004 | B125: 1 | C125: 6 | D125: 3 | E125: 0.02030522976 | F125: 0.004208277902 | G125: 0.00032653447 | H125: 3.2674e-05 | I125: 0.003220858258 | J125: 8.805446237e-05 | K125: 0.02818162885 | M125: 0.0240674799 | N125: 0.006193957623 | O125: 0.0002235108278 | P125: 2.428443252e-05 | Q125: 0.005335438643 | R125: 5.294412599e-05 | S125: 6.076124688e-05 | T125: 0.03589761555
A126: 2004 | B126: 1 | C126: 6 | D126: 4 | E126: 0.02028731911 | F126: 0.004277698814 | G126: 0.00032653447 | H126: 3.2674e-05 | I126: 0.003460583375 | J126: 8.805446237e-05 | K126: 0.02847286423 | M126: 0.02404625067 | N126: 0.006296134855 | O126: 0.0002235108278 | P126: 2.428443252e-05 | Q126: 0.005732549771 | R126: 5.294412599e-05 | S126: 6.176358116e-05 | T126: 0.03637567468
A127: 2004 | B127: 1 | C127: 6 | D127: 5 | E127: 0.02149283184 | F127: 0.004208576965 | G127: 0.00032653447 | H127: 3.2674e-05 | I127: 0.003391237438 | J127: 8.805446237e-05 | K127: 0.02953990918 | M127: 0.02547512657 | N127: 0.0061943978 | O127: 0.0002235108278 | P127: 2.428443252e-05 | Q127: 0.005617676354 | R127: 5.294412599e-05 | S127: 6.076556491e-05 | T127: 0.03758794011
A128: 2004 | B128: 1 | C128: 6 | D128: 6 | E128: 0.02230790678 | F128: 0.004405512836 | G128: 0.00032653447 | H128: 3.2674e-05 | I128: 0.003489787901 | J128: 8.805446237e-05 | K128: 0.03065047045 | M128: 0.0264412225 | N128: 0.00648425804 | O128: 0.0002235108278 | P128: 2.428443252e-05 | Q128: 0.005780927855 | R128: 5.294412599e-05 | S128: 6.360902472e-05 | T128: 0.03900714778
A129: 2004 | B129: 1 | C129: 6 | D129: 7 | E129: 0.02558270374 | F129: 0.004864015661 | G129: 0.00032653447 | H129: 3.2674e-05 | I129: 0.003750989386 | J129: 8.805446237e-05 | K129: 0.03464497172 | M129: 0.03032278951 | N129: 0.007159105835 | O129: 0.0002235108278 | P129: 2.428443252e-05 | Q129: 0.006213615166 | R129: 5.294412599e-05 | S129: 7.022912063e-05 | T129: 0.04399624989
A130: 2004 | B130: 1 | C130: 6 | D130: 8 | E130: 0.0289683028 | F130: 0.005380166686 | G130: 0 | H130: 0 | I130: 0.003684913125 | J130: 8.805446237e-05 | K130: 0.03812143707 | M130: 0.03433568856 | N130: 0.007918803187 | O130: 0 | P130: 0 | Q130: 0.006104158056 | R130: 5.294412599e-05 | S130: 7.768157044e-05 | T130: 0.04841159393
A131: 2004 | B131: 1 | C131: 6 | D131: 9 | E131: 0.02776709255 | F131: 0.005811969936 | G131: 0 | H131: 0 | I131: 0.003682704857 | J131: 8.805446237e-05 | K131: =SUM(E131:J131) -> 0.0373498218 | M131: =E131*W$5 -> 0.03291191232 | N131: 0.008554353189 | O131: =G131*Y$5 -> 0 | P131: =H131*Z$5 -> 0 | Q131: =I131*AA$5 -> 0.0061005 | R131: =J131*AB$5 -> 5.294412599e-05 | S131: 8.391616437e-05 | T131: =SUM(M131:R131) -> 0.04761970964
A132: 2004 | B132: 1 | C132: 6 | D132: 10 | E132: 0.02624966233 | F132: 0.006032394505 | G132: 0 | H132: 0 | I132: 0.003669967615 | J132: 8.805446237e-05 | K132: 0.03604007892 | M132: 0.03111332538 | N132: =(F132*X$5)-S132 -> 0.00887878529 | O132: 0 | P132: 0 | Q132: 0.006079400415 | R132: 5.294412599e-05 | S132: =(F132*$AC$7)*$AC$5 -> 8.70987659e-05 | T132: 0.04612445521
A133: 2004 | B133: 1 | C133: 6 | D133: 11 | E133: 0.02509776677 | F133: 0.006243751177 | G133: 0 | H133: 0 | I133: 0.003645564555 | J133: 8.805446237e-05 | K133: 0.03507513697 | M133: 0.0297480011 | N133: 0.009189870798 | O133: 0 | P133: 0 | Q133: 0.006038976087 | R133: 5.294412599e-05 | S133: 9.015044053e-05 | T133: 0.04502979211
A134: 2004 | B134: 1 | C134: 6 | D134: 12 | E134: 0.02461693282 | F134: 0.006090865714 | G134: 0 | H134: 0 | I134: 0.003449921216 | J134: 8.805446237e-05 | K134: 0.03424577421 | M134: 0.02917807593 | N134: 0.008964846192 | O134: 0 | P134: 0 | Q134: 0.005714887617 | R134: 5.294412599e-05 | S134: 8.794300282e-05 | T134: 0.04391075386
A135: 2004 | B135: 1 | C135: 6 | D135: 13 | E135: 0.02436973599 | F135: 0.005890083286 | G135: 0 | H135: 0 | I135: 0.003228382827 | J135: 8.805446237e-05 | K135: 0.03357625657 | M135: 0.02888507729 | N135: 0.008669324394 | O135: 0 | P135: 0 | Q135: 0.005347903295 | R135: 5.294412599e-05 | S135: 8.504400448e-05 | T135: 0.04295524911
A136: 2004 | B136: 1 | C136: 6 | D136: 14 | E136: 0.02328211078 | F136: 0.006009980821 | G136: 0 | H136: 0 | I136: 0.003385160368 | J136: 8.805446237e-05 | K136: 0.03276530643 | M136: 0.02759593168 | N136: 0.008845795689 | O136: 0 | P136: 0 | Q136: 0.005607609523 | R136: 5.294412599e-05 | S136: 8.677514578e-05 | T136: 0.04210228102
A137: 2004 | B137: 1 | C137: 6 | D137: 15 | E137: 0.02339634922 | F137: 0.006045354604 | G137: 0 | H137: 0 | I137: 0.003679099533 | J137: 8.805446237e-05 | K137: 0.03320885782 | M137: 0.02773133676 | N137: 0.008897860623 | O137: 0 | P137: 0 | Q137: 0.006094527685 | R137: 5.294412599e-05 | S137: 8.728589037e-05 | T137: 0.04277666919
A138: 2004 | B138: 1 | C138: 6 | D138: 16 | E138: 0.02447674418 | F138: 0.005778973323 | G138: 0 | H138: 0 | I138: 0.003475184409 | J138: 8.805446237e-05 | K138: 0.03381895637 | M138: 0.02901191246 | N138: 0.008505787095 | O138: 0 | P138: 0 | Q138: 0.005756736777 | R138: 5.294412599e-05 | S138: 8.343974258e-05 | T138: 0.04332738046
A139: 2004 | B139: 1 | C139: 6 | D139: 17 | E139: 0.02749021288 | F139: 0.005604101333 | G139: 0 | H139: 0 | I139: 0.003418428194 | J139: 8.805446237e-05 | K139: 0.03660079687 | M139: 0.03258373107 | N139: 0.008248401599 | O139: 0 | P139: 0 | Q139: 0.005662718574 | R139: 5.294412599e-05 | S139: 8.091485226e-05 | T139: 0.04654779537
A140: 2004 | B140: 1 | C140: 6 | D140: 18 | E140: 0.03178204675 | F140: 0.005500201244 | G140: 0.00032653447 | H140: 3.2674e-05 | I140: 0.003290933221 | J140: 8.805446237e-05 | K140: 0.04102044415 | M140: 0.03767077645 | N140: 0.008095476159 | O140: 0.0002235108278 | P140: 2.428443252e-05 | Q140: 0.005451519711 | R140: 5.294412599e-05 | S140: 7.941469016e-05 | T140: 0.05151851171
A141: 2004 | B141: 1 | C141: 6 | D141: 19 | E141: 0.03409797115 | F141: 0.005648471502 | G141: 0.00032653447 | H141: 3.2674e-05 | I141: 0.003438691725 | J141: 8.805446237e-05 | K141: 0.04363239731 | M141: 0.04041580641 | N141: 0.008313707871 | O141: 0.0002235108278 | P141: 2.428443252e-05 | Q141: 0.00569628566 | R141: 5.294412599e-05 | S141: 8.155549121e-05 | T141: 0.05472653933
A142: 2004 | B142: 1 | C142: 6 | D142: 20 | E142: 0.03370587673 | F142: 0.005507643318 | G142: 0.00032653447 | H142: 3.2674e-05 | I142: 0.003440181762 | J142: 8.805446237e-05 | K142: 0.04310096474 | M142: 0.03995106286 | N142: 0.008106429783 | O142: 0.0002235108278 | P142: 2.428443252e-05 | Q142: 0.005698753947 | R142: 5.294412599e-05 | S142: 7.95221426e-05 | T142: 0.05405698598
A143: 2004 | B143: 1 | C143: 6 | D143: 21 | E143: 0.03311158585 | F143: 0.005367802074 | G143: 0.00032653447 | H143: 3.2674e-05 | I143: 0.003380938353 | J143: 8.805446237e-05 | K143: 0.04230758921 | M143: 0.03924665893 | N143: 0.007900604321 | O143: 0.0002235108278 | P143: 2.428443252e-05 | Q143: 0.005600615642 | R143: 5.294412599e-05 | S143: 7.750304391e-05 | T143: 0.05304861827
A144: 2004 | B144: 1 | C144: 6 | D144: 22 | E144: 0.03099491818 | F144: 0.004950855805 | G144: 0.00032653447 | H144: 3.2674e-05 | I144: 0.002952778716 | J144: 8.805446237e-05 | K144: 0.03934581564 | M144: 0.03673780494 | N144: 0.007286921579 | O144: 0.0002235108278 | P144: 2.428443252e-05 | Q144: 0.004891357645 | R144: 5.294412599e-05 | S144: 7.148296259e-05 | T144: 0.04921682355
A145: 2004 | B145: 1 | C145: 6 | D145: 23 | E145: 0.0277359705 | F145: 0.004590167454 | G145: 0.00032653447 | H145: 3.2674e-05 | I145: 0.002808895482 | J145: 8.805446237e-05 | K145: 0.03558229637 | M145: 0.03287502384 | N145: 0.006756042105 | O145: 0.0002235108278 | P145: 2.428443252e-05 | Q145: 0.004653011184 | R145: 5.294412599e-05 | S145: 6.627516158e-05 | T145: 0.04458481652
A146: 2004 | B146: 1 | C146: 6 | D146: 24 | E146: 0.02432031792 | F146: 0.004227506267 | G146: 0.00032653447 | H146: 3.2674e-05 | I146: 0.002923278225 | J146: 8.805446237e-05 | K146: 0.03191836534 | M146: 0.0288265028 | N146: 0.006222258909 | O146: 0.0002235108278 | P146: 2.428443252e-05 | Q146: 0.004842489285 | R146: 5.294412599e-05 | S146: 6.103887575e-05 | T146: 0.04019199038
A147: 2004 | B147: 1 | C147: 7 | D147: 1 | E147: 0.02222480987 | F147: 0.004326578477 | G147: 0.00032653447 | H147: 3.2674e-05 | I147: 0.003310262145 | J147: 8.805446237e-05 | K147: 0.03030891343 | M147: 0.026342729 | N147: 0.006368078432 | O147: 0.0002235108278 | P147: 2.428443252e-05 | Q147: 0.005483538595 | R147: 5.294412599e-05 | S147: 6.246933048e-05 | T147: 0.03849508541
A148: 2004 | B148: 1 | C148: 7 | D148: 2 | E148: 0.02122779528 | F148: 0.004402213631 | G148: 0.00032653447 | H148: 3.2674e-05 | I148: 0.003495245142 | J148: 8.805446237e-05 | K148: 0.02957251698 | M148: 0.02516098276 | N148: 0.006479402101 | O148: 0.0002235108278 | P148: 2.428443252e-05 | Q148: 0.005789967923 | R148: 5.294412599e-05 | S148: 6.356138912e-05 | T148: 0.03773109217
A149: 2004 | B149: 1 | C149: 7 | D149: 3 | E149: 0.02163416156 | F149: 0.00431871483 | G149: 0.00032653447 | H149: 3.2674e-05 | I149: 0.003401534332 | J149: 8.805446237e-05 | K149: 0.02980167365 | M149: 0.02564264254 | N149: 0.006356504315 | O149: 0.0002235108278 | P149: 2.428443252e-05 | Q149: 0.005634733436 | R149: 5.294412599e-05 | S149: 6.235579116e-05 | T149: 0.03793461968
A150: 2004 | B150: 1 | C150: 7 | D150: 4 | E150: 0.02150323557 | F150: 0.004386434312 | G150: 0.00032653447 | H150: 3.2674e-05 | I150: 0.003620088861 | J150: 8.805446237e-05 | K150: 0.02995702168 | M150: 0.02548745796 | N150: 0.006456177296 | O150: 0.0002235108278 | P150: 2.428443252e-05 | Q150: 0.005996774912 | R150: 5.294412599e-05 | S150: 6.333355933e-05 | T150: 0.03824114955
A151: 2004 | B151: 1 | C151: 7 | D151: 5 | E151: 0.02254234378 | F151: 0.004291314433 | G151: 0.00032653447 | H151: 3.2674e-05 | I151: 0.003484591038 | J151: 8.805446237e-05 | K151: 0.03076551218 | M151: 0.02671909711 | N151: 0.006316175017 | O151: 0.0002235108278 | P151: 2.428443252e-05 | Q151: 0.005772319111 | R151: 5.294412599e-05 | S151: 6.196017036e-05 | T151: 0.03910833062
A152: 2004 | B152: 1 | C152: 7 | D152: 6 | E152: 0.02404936337 | F152: 0.004579251143 | G152: 0.00032653447 | H152: 3.2674e-05 | I152: 0.003787245395 | J152: 8.805446237e-05 | K152: 0.03286312284 | M152: 0.0285053445 | N152: 0.006739974923 | O152: 0.0002235108278 | P152: 2.428443252e-05 | Q152: 0.006273674223 | R152: 5.294412599e-05 | S152: 6.611754636e-05 | T152: 0.04181973303
A153: 2004 | B153: 1 | C153: 7 | D153: 7 | E153: 0.02693681863 | F153: 0.004965594322 | G153: 0.00032653447 | H153: 3.2674e-05 | I153: 0.003922490089 | J153: 8.805446237e-05 | K153: 0.03627216597 | M153: 0.03192780129 | N153: 0.007308614479 | O153: 0.0002235108278 | P153: 2.428443252e-05 | Q153: 0.00649771071 | R153: 5.294412599e-05 | S153: 7.169576477e-05 | T153: 0.04603486586
A154: 2004 | B154: 1 | C154: 7 | D154: 8 | E154: 0.02973995121 | F154: 0.00539098998 | G154: 0 | H154: 0 | I154: 0.003666599303 | J154: 8.805446237e-05 | K154: 0.03888559496 | M154: 0.03525031169 | N154: 0.007934733461 | O154: 0 | P154: 0 | Q154: 0.006073820716 | R154: 5.294412599e-05 | S154: 7.783784264e-05 | T154: 0.04931180999
A155: 2004 | B155: 1 | C155: 7 | D155: 9 | E155: 0.02854499832 | F155: 0.005838325983 | G155: 0 | H155: 0 | I155: 0.003676962334 | J155: 8.805446237e-05 | K155: 0.0381483411 | M155: 0.03383395221 | N155: 0.008593145361 | O155: 0 | P155: 0 | Q155: 0.006090987355 | R155: 5.294412599e-05 | S155: 8.429670633e-05 | T155: 0.04857102905
A156: 2004 | B156: 1 | C156: 7 | D156: 10 | E156: 0.02735672546 | F156: 0.006099556715 | G156: 0 | H156: 0 | I156: 0.003767194844 | J156: 8.805446237e-05 | K156: 0.03731153148 | M156: 0.03242551046 | N156: 0.008977638048 | O156: 0 | P156: 0 | Q156: 0.006240459944 | R156: 5.294412599e-05 | S156: 8.806848788e-05 | T156: 0.04769655258
A157: 2004 | B157: 1 | C157: 7 | D157: 11 | E157: 0.02648260309 | F157: 0.006358771029 | G157: 0 | H157: 0 | I157: 0.003833665787 | J157: 8.805446237e-05 | K157: 0.03676309437 | M157: 0.03138942652 | N157: 0.00935916287 | O157: 0 | P157: 0 | Q157: 0.006350570856 | R157: 5.294412599e-05 | S157: 9.181115538e-05 | T157: 0.04715210437
A158: 2004 | B158: 1 | C158: 7 | D158: 12 | E158: 0.02547160249 | F158: 0.006122368754 | G158: 0 | H158: 0 | I158: 0.003496702691 | J158: 8.805446237e-05 | K158: 0.0351787284 | M158: 0.03019110289 | N158: 0.00901121397 | O158: 0 | P158: 0 | Q158: 0.005792382393 | R158: 5.294412599e-05 | S158: 8.839785966e-05 | T158: 0.04504764338
A159: 2004 | B159: 1 | C159: 7 | D159: 13 | E159: 0.02544413878 | F159: 0.005966394569 | G159: 0 | H159: 0 | I159: 0.003336836974 | J159: 8.805446237e-05 | K159: 0.03483542478 | M159: 0.03015855057 | N159: 0.008781643224 | O159: 0 | P159: 0 | Q159: 0.005527560516 | R159: 5.294412599e-05 | S159: 8.61458254e-05 | T159: 0.04452069844
A160: 2004 | B160: 1 | C160: 7 | D160: 14 | E160: 0.02446954508 | F160: 0.006114013556 | G160: 0 | H160: 0 | I160: 0.003546715294 | J160: 8.805446237e-05 | K160: 0.0342183284 | M160: 0.02900337949 | N160: 0.008998916363 | O160: 0 | P160: 0 | Q160: 0.005875229619 | R160: 5.294412599e-05 | S160: 8.827722308e-05 | T160: 0.0439304696
A161: 2004 | B161: 1 | C161: 7 | D161: 15 | E161: 0.02398533375 | F161: 0.006058575056 | G161: 0 | H161: 0 | I161: 0.003670961844 | J161: 8.805446237e-05 | K161: 0.03380292511 | M161: 0.02842945116 | N161: 0.008917319157 | O161: 0 | P161: 0 | Q161: 0.006081047382 | R161: 5.294412599e-05 | S161: 8.747677394e-05 | T161: 0.04348076183
A162: 2004 | B162: 1 | C162: 7 | D162: 16 | E162: 0.02517656716 | F162: 0.005802499105 | G162: 0 | H162: 0 | I162: 0.003487649195 | J162: 8.805446237e-05 | K162: 0.03455476992 | M162: 0.02984140199 | N162: 0.008540413538 | O162: 0 | P162: 0 | Q162: 0.005777385031 | R162: 5.294412599e-05 | S162: 8.377941972e-05 | T162: 0.04421214469
A163: 2004 | B163: 1 | C163: 7 | D163: 17 | E163: 0.02849411455 | F163: 0.00565387002 | G163: 0 | H163: 0 | I163: 0.003502909311 | J163: 8.805446237e-05 | K163: 0.03773894834 | M163: 0.03377364044 | N163: 0.008321653686 | O163: 0 | P163: 0 | Q163: 0.005802663825 | R163: 5.294412599e-05 | S163: 8.163343775e-05 | T163: 0.04795090208
A164: 2004 | B164: 1 | C164: 7 | D164: 18 | E164: 0.03283904381 | F164: 0.00555582741 | G164: 0.00032653447 | H164: 3.2674e-05 | I164: 0.00337783414 | J164: 8.805446237e-05 | K164: 0.04221996829 | M164: 0.03892361899 | N164: 0.008177349582 | O164: 0.0002235108278 | P164: 2.428443252e-05 | Q164: 0.005595473429 | R164: 5.294412599e-05 | S164: 8.021784891e-05 | T164: 0.05299718139
A165: 2004 | B165: 1 | C165: 7 | D165: 19 | E165: 0.03414909903 | F165: 0.005550012916 | G165: 0.00032653447 | H165: 3.2674e-05 | I165: 0.003225391278 | J165: 8.805446237e-05 | K165: 0.04337176615 | M165: 0.04047640751 | N165: 0.008168791513 | O165: 0.0002235108278 | P165: 2.428443252e-05 | Q165: 0.005342947714 | R165: 5.294412599e-05 | S165: 8.01338963e-05 | T165: 0.05428888612
A166: 2004 | B166: 1 | C166: 7 | D166: 20 | E166: 0.03375823502 | F166: 0.005413197978 | G166: 0.00032653447 | H166: 3.2674e-05 | I166: 0.003220942615 | J166: 8.805446237e-05 | K166: 0.04283963855 | M166: 0.04001312235 | N166: 0.007967420324 | O166: 0.0002235108278 | P166: 2.428443252e-05 | Q166: 0.005335578382 | R166: 5.294412599e-05 | S166: 7.815849296e-05 | T166: 0.05361686044
A167: 2004 | B167: 1 | C167: 7 | D167: 21 | E167: 0.03268194784 | F167: 0.005196863609 | G167: 0.00032653447 | H167: 3.2674e-05 | I167: 0.003016744132 | J167: 8.805446237e-05 | K167: 0.04134281851 | M167: 0.03873741552 | N167: 0.007649008388 | O167: 0.0002235108278 | P167: 2.428443252e-05 | Q167: 0.004997318083 | R167: 5.294412599e-05 | S167: 7.503494782e-05 | T167: 0.05168448138
A168: 2004 | B168: 1 | C168: 7 | D168: 22 | E168: 0.03152594984 | F168: 0.004914089685 | G168: 0.00032653447 | H168: 3.2674e-05 | I168: 0.002856562645 | J168: 8.805446237e-05 | K168: 0.0397438651 | M168: 0.03736722868 | N168: 0.007232807332 | O168: 0.0002235108278 | P168: 2.428443252e-05 | Q168: 0.004731973128 | R168: 5.294412599e-05 | S168: 7.095211474e-05 | T168: 0.04963274853
A169: 2004 | B169: 1 | C169: 7 | D169: 23 | E169: 0.02807700477 | F169: 0.004541436027 | G169: 0.00032653447 | H169: 3.2674e-05 | I169: 0.002677767554 | J169: 8.805446237e-05 | K169: 0.03574347129 | M169: 0.03327924657 | N169: 0.00668431671 | O169: 0.0002235108278 | P169: 2.428443252e-05 | Q169: 0.004435794232 | R169: 5.294412599e-05 | S169: 6.557155256e-05 | T169: 0.0447000969
A170: 2004 | B170: 1 | C170: 7 | D170: 24 | E170: 0.02461680767 | F170: 0.004173273273 | G170: 0.00032653447 | H170: 3.2674e-05 | I170: 0.002791539479 | J170: 8.805446237e-05 | K170: 0.03202888335 | M170: 0.02917792759 | N170: 0.006142436028 | O170: 0.0002235108278 | P170: 2.428443252e-05 | Q170: 0.004624260498 | R170: 5.294412599e-05 | S170: 6.025583232e-05 | T170: 0.0402453635
A171: 2004 | B171: 1 | C171: 8 | D171: 1 | E171: 0.02122259675 | F171: 0.004252744529 | G171: 0.00032653447 | H171: 3.2674e-05 | I171: 0.003197406463 | J171: 8.805446237e-05 | K171: 0.02912001067 | M171: 0.02515482103 | N171: 0.006259405868 | O171: 0.0002235108278 | P171: 2.428443252e-05 | Q171: 0.005296590112 | R171: 5.294412599e-05 | S171: 6.140327856e-05 | T171: 0.03701155639
A172: 2004 | B172: 1 | C172: 8 | D172: 2 | E172: 0.02047313427 | F172: 0.004361809922 | G172: 0.00032653447 | H172: 3.2674e-05 | I172: 0.003445117225 | J172: 8.805446237e-05 | K172: 0.02872732435 | M172: 0.02426649456 | N172: 0.006419933866 | O172: 0.0002235108278 | P172: 2.428443252e-05 | Q172: 0.005706929675 | R172: 5.294412599e-05 | S172: 6.297801992e-05 | T172: 0.03669409749
A173: 2004 | B173: 1 | C173: 8 | D173: 3 | E173: 0.02037475807 | F173: 0.004212844057 | G173: 0.00032653447 | H173: 3.2674e-05 | I173: 0.003220064545 | J173: 8.805446237e-05 | K173: 0.0282549296 | M173: 0.02414989074 | N173: 0.006200678322 | O173: 0.0002235108278 | P173: 2.428443252e-05 | Q173: 0.005334123836 | R173: 5.294412599e-05 | S173: 6.082717534e-05 | T173: 0.03598543228
A174: 2004 | B174: 1 | C174: 8 | D174: 4 | E174: 0.02035347656 | F174: 0.004286175839 | G174: 0.00032653447 | H174: 3.2674e-05 | I174: 0.003460007289 | J174: 8.805446237e-05 | K174: 0.02854692262 | M174: 0.0241246661 | N174: 0.006308611772 | O174: 0.0002235108278 | P174: 2.428443252e-05 | Q174: 0.005731595468 | R174: 5.294412599e-05 | S174: 6.188597674e-05 | T174: 0.03646561272
A175: 2004 | B175: 1 | C175: 8 | D175: 5 | E175: 0.02156413842 | F175: 0.00421497203 | G175: 0.00032653447 | H175: 3.2674e-05 | I175: 0.003390367581 | J175: 8.805446237e-05 | K175: 0.02961674096 | M175: 0.02555964517 | N175: 0.006203810381 | O175: 0.0002235108278 | P175: 2.428443252e-05 | Q175: 0.005616235411 | R175: 5.294412599e-05 | S175: 6.085790009e-05 | T175: 0.03768043035
A176: 2004 | B176: 1 | C176: 8 | D176: 6 | E176: 0.02237892624 | F176: 0.00441492796 | G176: 0.00032653447 | H176: 3.2674e-05 | I176: 0.003489070864 | J176: 8.805446237e-05 | K176: 0.030730188 | M176: 0.02652540078 | N176: 0.006498115698 | O176: 0.0002235108278 | P176: 2.428443252e-05 | Q176: 0.005779740064 | R176: 5.294412599e-05 | S176: 6.374496504e-05 | T176: 0.03910399593
A177: 2004 | B177: 1 | C177: 8 | D177: 7 | E177: 0.02566881196 | F177: 0.004865661293 | G177: 0.00032653447 | H177: 3.2674e-05 | I177: 0.003753348079 | J177: 8.805446237e-05 | K177: 0.03473508427 | M177: 0.03042485228 | N177: 0.00716152796 | O177: 0.0002235108278 | P177: 2.428443252e-05 | Q177: 0.006217522405 | R177: 5.294412599e-05 | S177: 7.02528811e-05 | T177: 0.04410464203
A178: 2004 | B178: 1 | C178: 8 | D178: 8 | E178: 0.02906465393 | F178: 0.00537965224 | G178: 0 | H178: 0 | I178: 0.003688226157 | J178: 8.805446237e-05 | K178: 0.03822058679 | M178: 0.03444989209 | N178: 0.007918045999 | O178: 0 | P178: 0 | Q178: 0.006109646182 | R178: 5.294412599e-05 | S178: 7.767414262e-05 | T178: 0.0485305284
A179: 2004 | B179: 1 | C179: 8 | D179: 9 | E179: 0.02785542593 | F179: 0.005818713151 | G179: 0 | H179: 0 | I179: 0.003684774389 | J179: 8.805446237e-05 | K179: 0.03744696793 | M179: 0.03301661254 | N179: 0.008564278196 | O179: 0 | P179: 0 | Q179: 0.006103928237 | R179: 5.294412599e-05 | S179: 8.401352632e-05 | T179: 0.0477377631
A180: 2004 | B180: 1 | C180: 8 | D180: 10 | E180: 0.02633870265 | F180: 0.006034105323 | G180: 0 | H180: 0 | I180: 0.003672954464 | J180: 8.805446237e-05 | K180: 0.0361338169 | M180: 0.03121886351 | N180: 0.008881303358 | O180: 0 | P180: 0 | Q180: 0.006084348211 | R180: 5.294412599e-05 | S180: 8.712346755e-05 | T180: 0.0462374592
A181: 2004 | B181: 1 | C181: 8 | D181: 11 | E181: 0.02518658202 | F181: 0.006242237784 | G181: 0 | H181: 0 | I181: 0.00364949129 | J181: 8.805446237e-05 | K181: 0.03516636556 | M181: 0.02985327246 | N181: 0.009187643309 | O181: 0 | P181: 0 | Q181: 0.006045480831 | R181: 5.294412599e-05 | S181: 9.01285894e-05 | T181: 0.04513934072
A182: 2004 | B182: 1 | C182: 8 | D182: 12 | E182: 0.02470352227 | F182: 0.006088717329 | G182: 0 | H182: 0 | I182: 0.003454551894 | J182: 8.805446237e-05 | K182: 0.03433484596 | M182: 0.02928070909 | N182: 0.008961684089 | O182: 0 | P182: 0 | Q182: 0.005722558459 | R182: 5.294412599e-05 | S182: 8.791198335e-05 | T182: 0.04401789576
A183: 2004 | B183: 1 | C183: 8 | D183: 13 | E183: 0.0244487772 | F183: 0.005896186377 | G183: 0 | H183: 0 | I183: 0.003230567183 | J183: 8.805446237e-05 | K183: 0.03366358522 | M183: 0.02897876363 | N183: 0.008678307233 | O183: 0 | P183: 0 | Q183: 0.00535152174 | R183: 5.294412599e-05 | S183: 8.513212398e-05 | T183: 0.04306153673
A184: 2004 | B184: 1 | C184: 8 | D184: 14 | E184: 0.02335690883 | F184: 0.006017405931 | G184: 0 | H184: 0 | I184: 0.003388158783 | J184: 8.805446237e-05 | K184: 0.032850528 | M184: 0.02768458866 | N184: 0.008856724344 | O184: 0 | P184: 0 | Q184: 0.005612576478 | R184: 5.294412599e-05 | S184: 8.688235328e-05 | T184: 0.04220683361
A185: 2004 | B185: 1 | C185: 8 | D185: 15 | E185: 0.02346948386 | F185: 0.006055588454 | G185: 0 | H185: 0 | I185: 0.003682104154 | J185: 8.805446237e-05 | K185: 0.03329523093 | M185: 0.02781802214 | N185: 0.008912923324 | O185: 0 | P185: 0 | Q185: 0.00609950492 | R185: 5.294412599e-05 | S185: 8.743365188e-05 | T185: 0.04288339451
A186: 2004 | B186: 1 | C186: 8 | D186: 16 | E186: 0.02455426585 | F186: 0.005786324514 | G186: 0 | H186: 0 | I186: 0.003478274497 | J186: 8.805446237e-05 | K186: 0.03390691932 | M186: 0.02910379772 | N186: 0.008516606951 | O186: 0 | P186: 0 | Q186: 0.005761855592 | R186: 5.294412599e-05 | S186: 8.354588278e-05 | T186: 0.04343520439
A187: 2004 | B187: 1 | C187: 8 | D187: 17 | E187: 0.02757927434 | F187: 0.005605477001 | G187: 0 | H187: 0 | I187: 0.003423187112 | J187: 8.805446237e-05 | K187: 0.03669599292 | M187: 0.03268929427 | N187: 0.008250426376 | O187: 0 | P187: 0 | Q187: 0.005670601852 | R187: 5.294412599e-05 | S187: 8.093471483e-05 | T187: 0.04666326662
A188: 2004 | B188: 1 | C188: 8 | D188: 18 | E188: 0.03187858762 | F188: 0.005504743777 | G188: 0.00032653447 | H188: 3.2674e-05 | I188: 0.003296542651 | J188: 8.805446237e-05 | K188: 0.04112713698 | M188: 0.03778520488 | N188: 0.00810216209 | O188: 0.0002235108278 | P188: 2.428443252e-05 | Q188: 0.005460811882 | R188: 5.294412599e-05 | S188: 7.948027755e-05 | T188: 0.05164891824
A189: 2004 | B189: 1 | C189: 8 | D189: 19 | E189: 0.03419606661 | F189: 0.005658500908 | G189: 0.00032653447 | H189: 3.2674e-05 | I189: 0.003444054273 | J189: 8.805446237e-05 | K189: 0.04374588472 | M189: 0.04053207747 | N189: 0.008328469662 | O189: 0.0002235108278 | P189: 2.428443252e-05 | Q189: 0.005705168867 | R189: 5.294412599e-05 | S189: 8.170030085e-05 | T189: 0.05486645538
A190: 2004 | B190: 1 | C190: 8 | D190: 20 | E190: 0.03380501969 | F190: 0.005515578033 | G190: 0.00032653447 | H190: 3.2674e-05 | I190: 0.003445208435 | J190: 8.805446237e-05 | K190: 0.04321306909 | M190: 0.0400685755 | N190: 0.008118108499 | O190: 0.0002235108278 | P190: 2.428443252e-05 | Q190: 0.005707080767 | R190: 5.294412599e-05 | S190: 7.963670802e-05 | T190: 0.05419450415
A191: 2004 | B191: 1 | C191: 8 | D191: 21 | E191: 0.03321308358 | F191: 0.005371079261 | G191: 0.00032653447 | H191: 3.2674e-05 | I191: 0.003386203919 | J191: 8.805446237e-05 | K191: 0.04241762969 | M191: 0.03936696264 | N191: 0.007905427853 | O191: 0.0002235108278 | P191: 2.428443252e-05 | Q191: 0.005609338193 | R191: 5.294412599e-05 | S191: 7.755036161e-05 | T191: 0.05318246807
A192: 2004 | B192: 1 | C192: 8 | D192: 22 | E192: 0.03108979804 | F192: 0.004956216601 | G192: 0.00032653447 | H192: 3.2674e-05 | I192: 0.002954874693 | J192: 8.805446237e-05 | K192: 0.03944815226 | M192: 0.03685026459 | N192: 0.007294811871 | O192: 0.0002235108278 | P192: 2.428443252e-05 | Q192: 0.004894829689 | R192: 5.294412599e-05 | S192: 7.156036448e-05 | T192: 0.04934064553
A193: 2004 | B193: 1 | C193: 8 | D193: 23 | E193: 0.02782197435 | F193: 0.004595116013 | G193: 0.00032653447 | H193: 3.2674e-05 | I193: 0.00281049072 | J193: 8.805446237e-05 | K193: 0.03567484402 | M193: 0.0329769629 | N193: 0.006763325646 | O193: 0.0002235108278 | P193: 2.428443252e-05 | Q193: 0.00465565374 | R193: 5.294412599e-05 | S193: 6.634661138e-05 | T193: 0.04469668167
A194: 2004 | B194: 1 | C194: 8 | D194: 24 | E194: 0.02439778578 | F194: 0.004232690083 | G194: 0.00032653447 | H194: 3.2674e-05 | I194: 0.002923645014 | J194: 8.805446237e-05 | K194: 0.03200138381 | M194: 0.02891832427 | N194: 0.006229888715 | O194: 0.0002235108278 | P194: 2.428443252e-05 | Q194: 0.004843096881 | R194: 5.294412599e-05 | S194: 6.111372232e-05 | T194: 0.04029204926
A195: 2004 | B195: 1 | C195: 9 | D195: 1 | E195: 0.02098127813 | F195: 0.004218078814 | G195: 0.00032653447 | H195: 3.2674e-05 | I195: 0.003174366063 | J195: 8.805446237e-05 | K195: =SUM(E195:J195) -> 0.02882098594 | M195: =E195*W$5 -> 0.02486878974 | N195: 0.006208383105 | O195: =G195*Y$5 -> 0.0002235108278 | P195: =H195*Z$5 -> 2.428443252e-05 | Q195: =I195*AA$5 -> 0.005258423067 | R195: =J195*AB$5 -> 5.294412599e-05 | S195: 6.090275742e-05 | T195: =SUM(M195:R195) -> 0.0366363353
A196: 2004 | B196: 1 | C196: 9 | D196: 2 | E196: 0.02001201506 | F196: 0.004317462961 | G196: 0.00032653447 | H196: 3.2674e-05 | I196: 0.003460148662 | J196: 8.805446237e-05 | K196: 0.02823688961 | M196: 0.02371993697 | N196: =(F196*X$5)-S196 -> 0.006354661751 | O196: 0.0002235108278 | P196: 2.428443252e-05 | Q196: 0.005731829656 | R196: 5.294412599e-05 | S196: =(F196*$AC$7)*$AC$5 -> 6.233771604e-05 | T196: 0.03610716776
A197: 2004 | B197: 1 | C197: 9 | D197: 3 | E197: 0.01993433368 | F197: 0.004244441789 | G197: 0.00032653447 | H197: 3.2674e-05 | I197: 0.003410587671 | J197: 8.805446237e-05 | K197: 0.02803662607 | M197: 0.02362786242 | N197: 0.006247185474 | O197: 0.0002235108278 | P197: 2.428443252e-05 | Q197: 0.005649730536 | R197: 5.294412599e-05 | S197: 6.12833994e-05 | T197: 0.03582551781
A198: 2004 | B198: 1 | C198: 9 | D198: 4 | E198: 0.02045331637 | F198: 0.004232648383 | G198: 0.00032653447 | H198: 3.2674e-05 | I198: 0.003402385282 | J198: 8.805446237e-05 | K198: 0.02853561297 | M198: 0.0242430047 | N198: 0.006229827338 | O198: 0.0002235108278 | P198: 2.428443252e-05 | Q198: 0.005636143058 | R198: 5.294412599e-05 | S198: 6.111312023e-05 | T198: 0.03640971449
A199: 2004 | B199: 1 | C199: 9 | D199: 5 | E199: 0.02106424698 | F199: 0.004330680392 | G199: 0.00032653447 | H199: 3.2674e-05 | I199: 0.003629646002 | J199: 8.805446237e-05 | K199: 0.0294718363 | M199: 0.02496713146 | N199: 0.006374115838 | O199: 0.0002235108278 | P199: 2.428443252e-05 | Q199: 0.006012606574 | R199: 5.294412599e-05 | S199: 6.2528556e-05 | T199: 0.03765459326
A200: 2004 | B200: 1 | C200: 9 | D200: 6 | E200: 0.022270554 | F200: 0.004407072219 | G200: 0.00032653447 | H200: 3.2674e-05 | I200: 0.003510134575 | J200: 8.805446237e-05 | K200: 0.03063502372 | M200: 0.02639694881 | N200: 0.006486553218 | O200: 0.0002235108278 | P200: 2.428443252e-05 | Q200: 0.005814632671 | R200: 5.294412599e-05 | S200: 6.363153988e-05 | T200: 0.03899887409
... 4297 more rows

Sheet 2006 Input to CA model (hidden)
A2: Feed into OEB Cost Allocation Model (version 50) sheet "I6 Customer Data", row 27
D3: 1 | E3: 2 | F3: 3 | G3: 4 | H3: 5 | I3: 6 | J3: 7 | K3: 8 | L3: 9 | M3: 10 | N3: 11 | O3: 12 | P3: 13 | Q3: 14 | R3: 15 | S3: 16 | T3: 17 | U3: 18 | V3: 19 | W3: 20
B4: ID | C4: Total | D4: Residential | E4: GS>50kW | F4: Street Lighting | G4: Sentinel Lighting | H4: GS<50 kW | I4: Intermediate Use
A6: kWh - 30 year weather normalized amount | C6: 117394248.6 | D6: 27252917.78 | E6: 23215769.79 | F6: 1125333.42 | G6: 66176.72374 | H6: 13029066.17 | I6: 52704984.67
A9: Feed into OEB Cost Allocation Model sheet (version 50) "I8 Demand Data", row 40, 45, 50, 55, 61 and 67
D10: 1 | E10: 2 | F10: 3 | G10: 4 | H10: 5 | I10: 6 | J10: 7 | K10: 8 | L10: 9 | M10: 10 | N10: 11 | O10: 12 | P10: 13 | Q10: 14 | R10: 15 | S10: 16 | T10: 17 | U10: 18 | V10: 19 | W10: 20
A11: Customer Classes | C11: Total | D11: Residential | E11: GS>50kW | F11: Street Lighting | G11: Sentinel Lighting | H11: GS<50 kW | I11: Intermediate Use
A13: CO-INCIDENT PEAK (kW)
A15: 1 CP
A16: Total Sytem CP | B16: DCP1 | C16: 20665.51203 | D16: 5602.125684 | E16: 4189.787746 | F16: 88.25164319 | G16: 5.204063134 | H16: 1996.133384 | I16: 8784.009504
A18: 4 CP
A19: Total Sytem CP | B19: DCP4 | C19: 77906.48331 | D19: 20277.76432 | E19: 14949.5403 | F19: 413.6268728 | G19: 24.36977066 | H19: 7884.002261 | I19: 34357.17978
A21: 12 CP
A22: Total Sytem CP | B22: DCP12 | C22: 207861.3099 | D22: 45434.76569 | E22: 39616.17027 | F22: 678.8108559 | G22: 39.91380788 | H22: 19540.40224 | I22: 102551.2471
A24: NON CO_INCIDENT PEAK (kW)
A26: 1 NCP
A27: Classification NCP from Load Data Provider | B27: DNCP1 | C27: 23822.05999 | D27: 7713.615672 | E27: 4242.611032 | F27: 269.1950995 | G27: 15.87406409 | H27: 2460.701238 | I27: 9120.062883
A29: 4 NCP
A30: Classification NCP from Load Data Provider | B30: DNCP4 | C30: 88383.42134 | D30: 25897.20786 | E30: 16100.92404 | F30: 1064.659741 | G30: 62.74149277 | H30: 9088.162121 | I30: 36169.72608
A32: 12 NCP
A33: Classification NCP from Load Data Provider | B33: DNCP12 | C33: 230746.2608 | D33: 57815.0542 | E33: 42285.09205 | F33: 3151.17763 | G33: 185.345773 | H33: 22440.96793 | I33: 104868.6232

Sheet Revised Inputs to CA model
A2: Feed into OEB Cost Allocation Model (version 50) sheet "I6 Customer Data", row 27
B4: ID | C4: Total | D4: ='Hourly load shapes by class'!E2 -> Residential | E4: ='Hourly load shapes by class'!F2 -> GS>50kW | F4: ='Hourly load shapes by class'!G2 -> Street Lighting | G4: ='Hourly load shapes by class'!H2 -> Sentinel Lighting | H4: ='Hourly load shapes by class'!I2 -> GS<50kW | I4: ='Hourly load shapes by class'!J2 -> USL
A6: kWh - 30 year weather normalized amount | C6: =SUM(D6:I6) -> 301134867.1 | D6: ='Hourly load shapes by class'!W4 -> 196515750 | E6: ='Hourly load shapes by class'!X4 -> 59688867.21 | F6: ='Hourly load shapes by class'!Y4 -> 895336.0873 | G6: ='Hourly load shapes by class'!Z4 -> 96591.33033 | H6: ='Hourly load shapes by class'!AA4 -> 43471713.17 | I6: ='Hourly load shapes by class'!AB4 -> 466609.3431
A9: Feed into OEB Cost Allocation Model sheet (version 50) "I8 Demand Data", row 40, 45, 50, 55, 61 and 67 | K9: 2024 Demand Data
A11: Customer Classes | C11: Total | D11: ='Hourly load shapes by class'!E2 -> Residential | E11: ='Hourly load shapes by class'!F2 -> GS>50kW | F11: ='Hourly load shapes by class'!G2 -> Street Lighting | G11: ='Hourly load shapes by class'!H2 -> Sentinel Lighting | H11: ='Hourly load shapes by class'!I2 -> GS<50kW | I11: ='Hourly load shapes by class'!J2 -> USL | L11: =D11 -> Residential | M11: =E11 -> GS>50kW | N11: =F11 -> Street Lighting | O11: =G11 -> Sentinel Lighting | P11: GS<50kW | Q11: USL | R11: ED
A13: CO-INCIDENT PEAK (kW)
A15: 1 CP
A16: Total Sytem CP | B16: DCP1 | C16: =SUM(D16:I16) -> 49473.32853 | D16: ='Hourly load shapes by class'!E8802*1000000 -> 40614.29052 | E16: ='Hourly load shapes by class'!F8802*1000000 -> 5052.81055 | F16: ='Hourly load shapes by class'!G8802*1000000 -> 326.53447 | G16: ='Hourly load shapes by class'!H8802*1000000 -> 32.674 | H16: ='Hourly load shapes by class'!I8802*1000000 -> 3358.96453 | I16: ='Hourly load shapes by class'!J8802*1000000 -> 88.05446237 | L16: ='Hourly load shapes by class'!M8815*1000000 -> 48139.50061 | M16: ='Hourly load shapes by class'!N8815*1000000 -> 7436.983762 | N16: ='Hourly load shapes by class'!O8815*1000000 -> 223.5108278 | O16: ='Hourly load shapes by class'!P8815*1000000 -> 24.28443252 | P16: ='Hourly load shapes by class'!Q8815*1000000 -> 5564.215411 | Q16: ='Hourly load shapes by class'!R8815*1000000 -> 52.94412599 | R16: ='Hourly load shapes by class'!S8815*1000000 -> 72.95503682
A18: 4 CP
A19: Total Sytem CP | B19: DCP4 | C19: =SUM(D19:I19) -> 190329.8153 | D19: =SUM('Hourly load shapes by class'!E8815:E8818)*1000000 -> 152081.421 | E19: =SUM('Hourly load shapes by class'!F8815:F8818)*1000000 -> 21676.40471 | F19: =SUM('Hourly load shapes by class'!G8815:G8818)*1000000 -> 1312.07717 | G19: =SUM('Hourly load shapes by class'!H8815:H8818)*1000000 -> 130.6961635 | H19: =SUM('Hourly load shapes by class'!I8815:I8818)*1000000 -> 14772.02534 | I19: =SUM('Hourly load shapes by class'!J8815:J8818)*1000000 -> 357.190875 | L19: =SUM('Hourly load shapes by class'!M8815:M8818)*1000000 -> 179815.3559 | M19: =SUM('Hourly load shapes by class'!N8815:N8818)*1000000 -> 32288.81848 | N19: =SUM('Hourly load shapes by class'!O8815:O8818)*1000000 -> 670.9653573 | O19: =SUM('Hourly load shapes by class'!P8815:P8818)*1000000 -> 72.85341907 | P19: =SUM('Hourly load shapes by class'!Q8815:Q8818)*1000000 -> 24887.7452 | Q19: =SUM('Hourly load shapes by class'!R8815:R8818)*1000000 -> 214.7666135 | R19: =SUM('Hourly load shapes by class'!S8815:S8818)*1000000 -> 316.7456077
A21: 12 CP
A22: Total Sytem CP | B22: DCP12 | C22: =SUM(D22:I22) -> 480144.7382 | D22: =SUM('Hourly load shapes by class'!E8802:E8813)*1000000 -> 366099.4155 | E22: =SUM('Hourly load shapes by class'!F8802:F8813)*1000000 -> 66890.51153 | F22: =SUM('Hourly load shapes by class'!G8802:G8813)*1000000 -> 1967.32789 | G22: =SUM('Hourly load shapes by class'!H8802:H8813)*1000000 -> 196.0441635 | H22: =SUM('Hourly load shapes by class'!I8802:I8813)*1000000 -> 43930.95104 | I22: =SUM('Hourly load shapes by class'!J8802:J8813)*1000000 -> 1060.487997 | L22: =SUM('Hourly load shapes by class'!M8802:M8813)*1000000 -> 430622.6712 | M22: =SUM('Hourly load shapes by class'!N8802:N8813)*1000000 -> 100700.9493 | N22: =SUM('Hourly load shapes by class'!O8802:O8813)*1000000 -> 1119.480428 | O22: =SUM('Hourly load shapes by class'!P8802:P8813)*1000000 -> 121.4222841 | P22: =SUM('Hourly load shapes by class'!Q8802:Q8813)*1000000 -> 74453.5818 | Q22: =SUM('Hourly load shapes by class'!R8802:R8813)*1000000 -> 637.6350341 | R22: =SUM('Hourly load shapes by class'!S8802:S8813)*1000000 -> 987.8522929
A24: NON CO_INCIDENT PEAK (kW)
A26: 1 NCP
A27: Classification NCP from Load Data Provider | B27: DNCP1 | C27: =SUM(D27:I27) -> 52171.1728 | D27: ='Hourly load shapes by class'!E8788*1000000 -> 40614.29052 | E27: ='Hourly load shapes by class'!F8788*1000000 -> 6456.023266 | F27: ='Hourly load shapes by class'!G8788*1000000 -> 326.53447 | G27: ='Hourly load shapes by class'!H8788*1000000 -> 32.674 | H27: ='Hourly load shapes by class'!I8788*1000000 -> 4653.596081 | I27: ='Hourly load shapes by class'!J8788*1000000 -> 88.05446237 | L27: =MAX('Hourly load shapes by class'!M8788:M8799)*1000000 -> 48139.50061 | M27: =MAX('Hourly load shapes by class'!N8788:N8799)*1000000 -> 10948.31923 | N27: =MAX('Hourly load shapes by class'!O8788:O8799)*1000000 -> 227.1433612 | O27: =MAX('Hourly load shapes by class'!P8788:P8799)*1000000 -> 24.28455403 | P27: =MAX('Hourly load shapes by class'!Q8788:Q8799)*1000000 -> 8195.286282 | Q27: =MAX('Hourly load shapes by class'!R8788:R8799)*1000000 -> 55.15536133 | R27: =MAX('Hourly load shapes by class'!S8788:S8799)*1000000 -> 107.4004002
A29: 4 NCP
A30: Classification NCP from Load Data Provider | B30: DNCP4 | C30: =SUM(D30:I30) -> 201923.7632 | D30: =(LARGE('Hourly load shapes by class'!E8788:E8799,1)+LARGE('Hourly load shapes by class'!E8788:E8799,2)+LARGE('Hourly load shapes by class'!E8788:E8799,3)+LARGE('Hourly load shapes by class'!E8788:E8799,4))*1000000 -> 153920.7162 | E30: =(LARGE('Hourly load shapes by class'!F8788:F8799,1)+LARGE('Hourly load shapes by class'!F8788:F8799,2)+LARGE('Hourly load shapes by class'!F8788:F8799,3)+LARGE('Hourly load shapes by class'!F8788:F8799,4))*1000000 -> 28008.95145 | F30: =(LARGE('Hourly load shapes by class'!G8788:G8799,1)+LARGE('Hourly load shapes by class'!G8788:G8799,2)+LARGE('Hourly load shapes by class'!G8788:G8799,3)+LARGE('Hourly load shapes by class'!G8788:G8799,4))*1000000 -> 1327.36544 | G30: =(LARGE('Hourly load shapes by class'!H8788:H8799,1)+LARGE('Hourly load shapes by class'!H8788:H8799,2)+LARGE('Hourly load shapes by class'!H8788:H8799,3)+LARGE('Hourly load shapes by class'!H8788:H8799,4))*1000000 -> 130.6961635 | H30: =(LARGE('Hourly load shapes by class'!I8788:I8799,1)+LARGE('Hourly load shapes by class'!I8788:I8799,2)+LARGE('Hourly load shapes by class'!I8788:I8799,3)+LARGE('Hourly load shapes by class'!I8788:I8799,4))*1000000 -> 18174.08273 | I30: =(LARGE('Hourly load shapes by class'!J8788:J8799,1)+LARGE('Hourly load shapes by class'!J8788:J8799,2)+LARGE('Hourly load shapes by class'!J8788:J8799,3)+LARGE('Hourly load shapes by class'!J8788:J8799,4))*1000000 -> 361.9512155 | L30: =(LARGE('Hourly load shapes by class'!M8788:M8799,1)+LARGE('Hourly load shapes by class'!M8788:M8799,2)+LARGE('Hourly load shapes by class'!M8788:M8799,3)+LARGE('Hourly load shapes by class'!M8788:M8799,4))*1000000 -> 182439.8831 | M30: =(LARGE('Hourly load shapes by class'!N8788:N8799,1)+LARGE('Hourly load shapes by class'!N8788:N8799,2)+LARGE('Hourly load shapes by class'!N8788:N8799,3)+LARGE('Hourly load shapes by class'!N8788:N8799,4))*1000000 -> 41225.00044 | N30: =(LARGE('Hourly load shapes by class'!O8788:O8799,1)+LARGE('Hourly load shapes by class'!O8788:O8799,2)+LARGE('Hourly load shapes by class'!O8788:O8799,3)+LARGE('Hourly load shapes by class'!O8788:O8799,4))*1000000 -> 908.573445 | O30: =(LARGE('Hourly load shapes by class'!P8788:P8799,1)+LARGE('Hourly load shapes by class'!P8788:P8799,2)+LARGE('Hourly load shapes by class'!P8788:P8799,3)+LARGE('Hourly load shapes by class'!P8788:P8799,4))*1000000 -> 97.13785158 | P30: =(LARGE('Hourly load shapes by class'!Q8788:Q8799,1)+LARGE('Hourly load shapes by class'!Q8788:Q8799,2)+LARGE('Hourly load shapes by class'!Q8788:Q8799,3)+LARGE('Hourly load shapes by class'!Q8788:Q8799,4))*1000000 -> 30105.85861 | Q30: =(LARGE('Hourly load shapes by class'!R8788:R8799,1)+LARGE('Hourly load shapes by class'!R8788:R8799,2)+LARGE('Hourly load shapes by class'!R8788:R8799,3)+LARGE('Hourly load shapes by class'!R8788:R8799,4))*1000000 -> 217.6288429 | R30: =(LARGE('Hourly load shapes by class'!S8788:S8799,1)+LARGE('Hourly load shapes by class'!S8788:S8799,2)+LARGE('Hourly load shapes by class'!S8788:S8799,3)+LARGE('Hourly load shapes by class'!S8788:S8799,4))*1000000 -> 404.4074212
A32: 12 NCP
A33: Classification NCP from Load Data Provider | B33: DNCP12 | C33: =SUM(D33:I33) -> 504539.8449 | D33: =SUM('Hourly load shapes by class'!E8788:E8799)*1000000 -> 370216.4815 | E33: =SUM('Hourly load shapes by class'!F8788:F8799)*1000000 -> 79538.44316 | F33: =SUM('Hourly load shapes by class'!G8788:G8799)*1000000 -> 3948.05212 | G33: =SUM('Hourly load shapes by class'!H8788:H8799)*1000000 -> 392.0881635 | H33: =SUM('Hourly load shapes by class'!I8788:I8799)*1000000 -> 49384.29196 | I33: =SUM('Hourly load shapes by class'!J8788:J8799)*1000000 -> 1060.487997 | L33: =SUM('Hourly load shapes by class'!M8788:M8799)*1000000 -> 438811.9627 | M33: =SUM('Hourly load shapes by class'!N8788:N8799)*1000000 -> 117068.7293 | N33: =SUM('Hourly load shapes by class'!O8788:O8799)*1000000 -> 2702.41729 | O33: =SUM('Hourly load shapes by class'!P8788:P8799)*1000000 -> 291.4133117 | P33: =SUM('Hourly load shapes by class'!Q8788:Q8799)*1000000 -> 81806.41263 | Q33: =SUM('Hourly load shapes by class'!R8788:R8799)*1000000 -> 637.6350341 | R33: =SUM('Hourly load shapes by class'!S8788:S8799)*1000000 -> 1148.416311
